Cogmind - Beta 12 @@@ ROGUE MODE // 2024.02.11 @ 21:06:11 Player: Dosh Result: Establishing Free Derelict Territories! Performance ------------- Evolutions (9) 4500 Regions Visited (32) 6400 Robots Destroyed (354) 1770 Value Destroyed (14441) 14441 Prototype IDs (245) 4900 Alien Tech Used (1) 200 Bonus (47933) 47933 TOTAL SCORE: 80144 Bonus ------- High Alert Combat Kills 1470 Follower Combat Kills 9413 Entered Garrisons 200 Network Hubs Disabled 800 Aligned with FarCom 300 Met Data Miner 300 Used Data Conduit 3000 Met Zhirov 300 Met Warlord at Base 500 MAIN.C Attacked Warlord 500 Warlord Defense Kills 400 Built Enhanced Grunts 300 A7 Reached Mainframe 300 Met Warlord at Research 2000 Pursued by Intercept 3000 Destroyed MAIN.C Guards 500 Met MAIN.C 5000 Hacked MAIN.C 300 Destroyed MAIN.C Shell 5000 Destroyed MAIN.C 10000 Met Warlord at Command 2000 Win 3000 Friendly Fire -650 Cogmind --------- Core Integrity 1522/1600 Matter 228/300 Energy 41/790 System Corruption 2% Temperature Cool (0) Movement Walking (100) Location Free Derelict Territories Parts ------- > --- POWER (3) -------- Light Quantum Reactor Vortex Chain Reactor > --- PROPULSION (6) --- Biometal Leg Enhanced Biometal Leg (fused) Enhanced Biometal Leg Enhanced Biometal Leg Enhanced Biometal Leg Experimental Myomer Leg > --- UTILITY (13) ----- Advanced Cooling System Experimental Cooling System Experimental Coolant Injector High-capacity Storage Unit Femtoactuators Advanced Phase Shifter Experimental Cloaking Device Layered Medium Armor Plating (fused) Layered Medium Armor Plating Experimental EM Disruption Field Improved Remote Force Field Combat Drone Bay (0/2) > --- WEAPON (3) ------- Enhanced Nova Cannon Heavy Gauss Cannon Vibroblade > --- INVENTORY (20) --- Angular Momentum Engine Antimatter Reactor Micro Antimatter Reactor Armored Medium Treads Myomer Leg Advanced Energy Well (500) Matter Compressor (29) Layered Medium Armor Plating Antimissile System Combat Drone Bay (0/2) Combat Drone Bay (0/2) Transdimensional Reconstructor Enhanced Nova Cannon Enhanced Nova Cannon Long-range Missile Launcher Advanced Micro-nuke Launcher Improved Remote Datajack Peak State ------------ > --- POWER ------------ Light Quantum Reactor Vortex Chain Reactor > --- PROPULSION ------- Biometal Leg Enhanced Biometal Leg Enhanced Biometal Leg Enhanced Biometal Leg Enhanced Biometal Leg Experimental Myomer Leg > --- UTILITY ---------- Experimental Cooling System Experimental Coolant Injector High-capacity Storage Unit Femtoactuators Experimental Cloaking Device Layered Medium Armor Plating Experimental EM Disruption Field Improved Remote Force Field Antimissile System Improved Hacking Suite Deep Network Scanner Combat Drone Bay > --- WEAPON ----------- Enhanced Nova Cannon Enhanced Nova Cannon Vibroblade > --- INVENTORY -------- Antimatter Reactor Myomer Leg Advanced Cooling System Advanced Energy Well Matter Compressor Long-range Terrain Scanner Advanced Transmission Jammer Advanced Phase Shifter Combat Drone Bay Combat Drone Bay Transdimensional Reconstructor Enhanced Nova Cannon Heavy Gauss Cannon Long-range Missile Launcher Hellfire Missile Launcher Advanced Micro-nuke Launcher Improved Remote Datajack [Rating: 219] Favorites ----------- Power Vortex Chain Reactor Engine Reinforced Deuterium Engine Power Core Micro Fission Core Reactor Vortex Chain Reactor Propulsion Enhanced Biometal Leg Treads Light Treads Leg Enhanced Biometal Leg Wheel Armored Huge Wheel Utility High-capacity Storage Unit Device Combat Drone Bay Storage High-capacity Storage Unit Processor Advanced Targeting Computer Hackware Improved Hacking Suite Protection Layered Medium Armor Plating Weapon Longsword +1 Energy Gun Small Laser Energy Cannon Heavy Phase Cannon Ballistic Gun Heavy Assault Rifle Ballistic Cannon Advanced Assault Cannon Launcher Heavy Missile Launcher Special Weapon Improved Remote Datajack Slashing Weapon Longsword +1 Build | -11 -10 -10 -10 -9 -8 -8 -7 -7 -7 -7 -6 -6 -6 -6 -6 -6 -5 -5 -5 -5 -4 -4 -4 -4 -4 -4 -4 -3 -3 -2 -1 -1 ------- Run | Jun Mat Min Exi Min Mat Gar Fac Low Low Dat Pro Fac Ext Cet Arc Hub Fac Upp Upp War Pro Fac Was Fac Upp Upp Zhi Pro Res Res Acc Com Slots Evolved 18 | . . . . . 4 . 2 . . . . 2 . . . . 2 . . . . 2 . . . . . . 2 2 2 . Power 2 | . . . . . . . . . . . . 1 . . . . . . . . . . . . . . . . . 1 . . Propulsion 4 | . . . . . 2 . . . . . . . . . . . . . . . . 2 . . . . . . . . . . Utility 11 | . . . . . 2 . 2 . . . . 1 . . . . 2 . . . . . . . . . . . 2 1 1 . Weapon 1 | . . . . . . . . . . . . . . . . . . . . . . . . . . . . . . . 1 . Parts Attached 352 | 8 8 6 . 3 14 7 28 3 14 17 5 28 3 3 8 19 43 1 2 10 . 24 . 20 1 1 4 2 29 8 13 20 Power 27 | 2 1 1 . . 2 . 3 1 1 1 1 3 . . 2 3 3 . . 1 . . . . . . . . . 1 1 . Engine 11 | 2 1 1 . . 2 . 2 . . . . 1 . . . 2 . . . . . . . . . . . . . . . . Core 5 | . . . . . . . 1 1 1 . . . . . . . 2 . . . . . . . . . . . . . . . Reactor 11 | . . . . . . . . . . 1 1 2 . . 2 1 1 . . 1 . . . . . . . . . 1 1 . Propulsion 62 | 2 2 2 . 1 2 . 1 . 5 5 2 7 . . 2 5 7 . . 1 . 7 . 5 . . . . 4 . 2 . Treads 12 | 2 2 2 . . . . . . 5 1 . . . . . . . . . . . . . . . . . . . . . . Leg 46 | . . . . . . . . . . 4 2 7 . . 2 5 7 . . 1 . 7 . 5 . . . . 4 . 2 . Wheel 4 | . . . . 1 2 . 1 . . . . . . . . . . . . . . . . . . . . . . . . . Hover . | . . . . . . . . . . . . . . . . . . . . . . . . . . . . . . . . . Flight . | . . . . . . . . . . . . . . . . . . . . . . . . . . . . . . . . . Utility 170 | 2 1 1 . 1 4 6 10 1 3 10 2 13 2 2 2 9 27 1 2 2 . 14 . 10 1 1 1 2 19 7 3 11 Device 111 | 1 . . . . . 1 6 1 1 4 1 7 1 . . 7 21 1 2 1 . 13 . 10 1 1 1 1 16 3 3 7 Storage 4 | 1 1 . . 1 . . . . . . . . . . . . . . . . . . . . . . . . . 1 . . Processor 5 | . . . . . . . 2 . . . . 1 . . . . . . . . . . . . . . . . 1 1 . . Hackware 7 | . . . . . . . 1 . . . . 2 . . 1 . 1 . . . . . . . . . . . 1 . . 1 Protection 43 | . . 1 . . 4 5 1 . 2 6 1 3 1 2 1 2 5 . . 1 . 1 . . . . . 1 1 2 . 3 Artifact . | . . . . . . . . . . . . . . . . . . . . . . . . . . . . . . . . . Weapon 93 | 2 4 2 . 1 6 1 14 1 5 1 . 5 1 1 2 2 6 . . 6 . 3 . 5 . . 3 . 6 . 7 9 Energy Gun 5 | 2 2 1 . . . . . . . . . . . . . . . . . . . . . . . . . . . . . . Energy Cannon 21 | . . . . . 3 . 3 . 2 1 . . . . . . 1 . . 1 . . . 1 . . 1 . 2 . 4 2 Ballistic Gun 1 | . . . . . 1 . . . . . . . . . . . . . . . . . . . . . . . . . . . Ballistic Cannon 30 | . 1 . . . 1 1 6 . 1 . . 2 1 . 1 1 3 . . 2 . 2 . 3 . . 1 . 2 . 1 1 Launcher 16 | . 1 1 . 1 . . 4 1 . . . 1 . . . . 1 . . 1 . 1 . 1 . . . . 1 . 1 1 Special Weapon 5 | . . . . . . . . . . . . . . . . . . . . 1 . . . . . . . . . . 1 3 Impact Weapon . | . . . . . . . . . . . . . . . . . . . . . . . . . . . . . . . . . Slashing Weapon 15 | . . . . . 1 . 1 . 2 . . 2 . 1 1 1 1 . . 1 . . . . . . 1 . 1 . . 2 Piercing Weapon . | . . . . . . . . . . . . . . . . . . . . . . . . . . . . . . . . . Special Melee Weapon . | . . . . . . . . . . . . . . . . . . . . . . . . . . . . . . . . . Unidentified Prototypes 3 | . . . . . . . . . . . . . . . . . . . . 1 . . . . . . 1 . . . . 1 Corrupted Parts 4 | . . . . . . . . . . . 3 . . . . 1 . . . . . . . . . . . . . . . . System Corruption 17 | . . . . . . . . . . . 7 . . . . 10 . . . . . . . . . . . . . . . . Parts Lost 40 | . 1 . . . 4 . 10 1 7 3 1 3 1 . . 6 3 . . . . . . . . . . . . . . . Power 8 | . . . . . 1 . 2 . 1 . . 1 . . . 3 . . . . . . . . . . . . . . . . Propulsion 3 | . . . . . . . . . 2 1 . . . . . . . . . . . . . . . . . . . . . . Utility 20 | . 1 . . . 2 . 6 1 1 1 1 1 . . . 3 3 . . . . . . . . . . . . . . . Weapon 9 | . . . . . 1 . 2 . 3 1 . 1 1 . . . . . . . . . . . . . . . . . . . Highest Loss Streak 3 | . 1 . . . 1 . 3 1 3 3 1 1 1 . . 2 2 . . . . . . . . . . . . . . . To Critical Strikes 1 | . . . . . 1 . . . . . . . . . . . . . . . . . . . . . . . . . . . Average Slot Usage (%) 87 | . 92 87 100 98 69 79 78 83 83 88 95 90 90 86 85 86 86 94 94 90 88 88 89 88 89 89 79 89 89 87 91 91 Engine 3 | . 14 14 14 14 9 9 5 . . . . 3 6 6 . 3 1 . . . . . . . . . . . . . . . Core 1 | . . . . . . . 1 7 7 4 . . . . . . 4 5 5 1 . . . . . . . . . . . . Reactor 4 | . . . . . . . . . . 2 7 5 6 6 12 8 4 5 5 5 5 5 5 5 5 5 5 5 4 5 8 8 Treads 3 | . 28 28 28 25 . . . . 8 12 . . . . . . . . . . . . . . . . . . . . . . Leg 19 | . . . . . . . . . . 8 30 26 26 26 26 26 21 23 23 23 23 31 31 30 31 31 31 31 27 26 23 24 Wheel 2 | . . . . . 17 18 14 15 8 3 . . . . . . . . . . . . . . . . . . . . . . Device 16 | . 7 . . . . 1 9 22 14 9 7 13 13 13 13 19 20 23 23 22 23 22 21 25 26 26 25 21 23 25 28 31 Storage 6 | . 14 14 14 14 9 9 7 7 7 7 7 6 6 6 6 6 5 5 5 5 5 5 5 5 5 5 5 5 4 4 4 4 Processor 1 | . . . . . . . 7 7 7 7 7 1 . . . . . . . . . . . . . . . . . 4 4 . Hackware 4 | . . . . . . . 3 . . . . 5 6 6 6 4 4 5 5 5 5 5 5 5 5 5 5 5 9 8 8 6 Protection 10 | . . 2 14 14 15 24 12 7 12 20 18 11 12 13 12 8 10 11 11 11 11 8 10 5 5 5 5 9 8 3 4 6 Energy Gun 1 | . 19 2 14 . . . . . . . . . . . . . . . . . . . . . . . . . . . . . Energy Cannon 3 | . . . . . 7 15 3 . 3 3 7 1 . . . . 1 5 5 4 5 5 5 5 5 5 . 5 4 4 7 7 Ballistic Cannon 4 | . 8 14 14 14 5 1 7 7 1 . . 2 7 3 . . . 5 5 4 5 4 5 4 5 5 . 5 3 4 3 2 Launcher 1 | . . 11 . 14 . . 2 4 4 . . 1 . . . . . . . . . . . . . . . . . . . . Slashing Weapon 1 | . . . . . 1 . . 2 4 7 7 5 2 2 5 5 4 . . . . . . . . . . . . . . . Naked Turns . | . . . . . . . . . . . . . . . . . . . . . . . . . . . . . . . . . Heaviest Build 180 | 13 29 35 35 56 67 85 90 80 85 92 92 112 115 109 109 111 110 105 106 129 127 134 133 133 130 130 127 133 144 153 170 180 Greatest Support 173 | 40 40 40 40 40 56 56 56 56 56 112 112 112 112 112 112 120 120 118 118 118 115 173 173 173 171 171 171 171 173 173 173 173 Greatest Overweight (x) 18 | . . . . 18 1 1 1 1 3 3 . . 1 . . . 1 . . 1 1 . . . . . . . . . 1 1 Average Overweight (x) . | . . . . . . 1 . 1 1 1 . . . . . . . . . . 1 . . . . . . . . . . . Largest Inventory Capacity 20 | 8 15 15 15 20 20 20 20 20 20 20 20 20 20 20 20 20 20 20 20 20 20 20 20 20 20 20 20 20 20 20 20 20 Average Capacity 19 | 7 10 15 15 15 20 20 20 20 20 20 20 20 20 20 20 20 20 20 20 20 20 20 20 20 20 20 20 20 20 20 20 20 Most Carried 20 | 3 11 15 15 20 20 20 20 18 20 20 16 20 20 20 20 20 20 20 20 20 20 20 20 20 20 20 20 20 20 20 20 20 Average Carried 18 | 1 7 11 14 15 18 19 18 17 16 15 15 18 19 19 19 19 18 19 19 19 19 19 19 19 19 19 19 19 18 19 19 18 Final Capacity 20 | 8 15 15 15 20 20 20 20 20 20 20 20 20 20 20 20 20 20 20 20 20 20 20 20 20 20 20 20 20 20 20 20 20 Final Carried 20 | 3 11 15 15 20 20 19 16 18 15 16 15 20 20 20 20 18 20 20 20 20 20 20 20 20 20 20 20 20 20 20 20 19 Class Distribution -------------------- 41% | Scavenger-Mutant 38% | Mutant 7% | Hacker-Mutant 4% | Commander-Mutant 4% | Infiltrator-Mutant Dominant Class ---------------- Mutant | -10/Materials Mutant | -10/Mines Scavenger-Mutant | -10/Exiles Scavenger-Mutant | -9/Mines Mutant | -8/Materials Mutant | -8/Garrison Mutant | -7/Factory Mutant | -7/Lower Caves Trapper-Mutant | -7/Lower Caves Mutant | -7/Data Miner Mutant | -6/Proximity Caves Scavenger-Mutant | -6/Factory Commander-Mutant | -6/Extension Scavenger-Mutant | -6/Cetus Scavenger-Mutant | -6/Archives Scavenger-Mutant | -6/Hub_04(d) Scavenger-Mutant | -5/Factory Scavenger-Mutant | -5/Upper Caves Scavenger-Mutant | -5/Upper Caves Commander-Mutant | -5/Warlord Mutant | -4/Proximity Caves Mutant | -4/Factory Mutant | -4/Waste Mutant | -4/Factory Scavenger-Mutant | -4/Upper Caves Scavenger-Mutant | -4/Upper Caves Scavenger-Mutant | -4/Zhirov Mutant | -3/Proximity Caves Hacker-Mutant | -3/Research Hacker-Skirmisher | -2/Research Hacker-Skirmisher | -1/Access Hacker-Mutant | -1/Command Resources | -11 -10 -10 -10 -9 -8 -8 -7 -7 -7 -7 -6 -6 -6 -6 -6 -6 -5 -5 -5 -5 -4 -4 -4 -4 -4 -4 -4 -3 -3 -2 -1 -1 ----------- Run | Jun Mat Min Exi Min Mat Gar Fac Low Low Dat Pro Fac Ext Cet Arc Hub Fac Upp Upp War Pro Fac Was Fac Upp Upp Zhi Pro Res Res Acc Com Matter Collected 8372 | 236 231 86 . 68 427 84 1121 337 263 168 69 487 235 84 98 263 738 10 62 205 18 649 193 552 209 54 30 145 397 339 275 239 Remotely 564 | . . . . . . . 564 . . . . . . . . . . . . . . . . . . . . . . . . . Salvage Created 13200 | 44 425 121 . 68 1130 348 1457 264 421 370 185 1269 432 . 176 577 1407 . 89 178 130 727 . 947 . 55 336 133 384 116 722 689 Parts 733 | 8 36 11 . 18 59 24 107 14 16 20 14 85 17 . 13 29 83 . 4 7 2 36 . 49 . 6 3 5 11 4 34 18 Haulers Intercepted 6 | . 2 . . . 2 . 2 . . . . . . . . . . . . . . . . . . . . . . . . . Recyclers Shooed 19 | . . . . 1 2 . 6 . . . . 2 . . . . 2 . . . . 1 . 1 . . . . 3 1 . . Parts Field Recycled . | . . . . . . . . . . . . . . . . . . . . . . . . . . . . . . . . . Retrieved Matter . | . . . . . . . . . . . . . . . . . . . . . . . . . . . . . . . . . Parts Self-Destructed 179 | . . . . . . . . 12 16 . 14 . . . . . . 22 24 . 21 . . . 18 6 3 43 . . . . Prevented 3 | . . . . . . . . . 3 . . . . . . . . . . . . . . . . . . . . . . . Kills | -11 -10 -10 -10 -9 -8 -8 -7 -7 -7 -7 -6 -6 -6 -6 -6 -6 -5 -5 -5 -5 -4 -4 -4 -4 -4 -4 -4 -3 -3 -2 -1 -1 ------- Run | Jun Mat Min Exi Min Mat Gar Fac Low Low Dat Pro Fac Ext Cet Arc Hub Fac Upp Upp War Pro Fac Was Fac Upp Upp Zhi Pro Res Res Acc Com Combat Hostiles Destroyed 239 | . 12 5 . 9 23 7 38 8 11 4 5 22 4 . . 7 19 . 2 4 2 13 . 16 . 1 . 3 2 . 21 1 Melee 56 | . . . . . . . . 4 4 4 5 15 2 . . 7 14 . . . . . . . . . . . 1 . . . Guns 7 | . 5 1 . . 1 . . . . . . . . . . . . . . . . . . . . . . . . . . . Cannons 82 | . 4 1 . 1 13 7 13 . . . . . 2 . . . 3 . 2 . 2 13 . 10 . 1 . 3 1 . 6 . AOE 90 | . 3 3 . 8 7 . 24 4 6 . . 7 . . . . 2 . . 4 . . . 6 . . . . . . 15 1 Classes Destroyed 19 | 1 7 1 . . 3 1 1 . 3 . . . . . . . . . . . 1 . . . . . . 1 . . . . Worker 32 | . 1 . . 2 2 . 7 . . . . 3 . . . 2 6 . . . . 1 . 1 . . . . 3 . 3 1 Builder 31 | . 1 . . . 1 . 13 . . . . 4 2 . . . 3 . . . . 2 . 4 . . . . 1 . . . Tunneler 5 | 2 . . . . 1 . . . . . . . . . . . 2 . . . . . . . . . . . . . . . Hauler 6 | . 2 . . . 2 . 2 . . . . . . . . . . . . . . . . . . . . . . . . . Recycler 10 | . . . . . 1 . 3 . . . . . 1 . . . . . . . . . . 2 . . . . 1 1 1 . Minesweeper 1 | . . . . . . . . . 1 . . . . . . . . . . . . . . . . . . . . . . . Mechanic 2 | . . . . . 1 . . . . . . . . . . . 1 . . . . . . . . . . . . . . . Operator 11 | . 1 . . . 1 . 1 . . . . 1 . . 5 1 . . . . . 1 . . . . . . . . . . Drone 1 | . . . . . . . . . . . . . . . . . . . . . . . . . . . . 1 . . . . Watcher 16 | . 2 . . . 4 . 3 . . . . 2 . . . 1 3 . . . . . . . . . . . . . 1 . Swarmer 69 | . 6 3 . 9 11 . 9 4 2 . 3 9 . . . . 2 . . . 1 . . 1 . . . . . . 9 . Cutter 2 | . . . . . . 2 . . . . . . . . . . . . . . . . . . . . . . . . . . Grunt 72 | . 6 . . . 6 . 22 4 5 . . 5 1 . . 2 3 . . 4 . 2 . 4 . . . 2 . . 6 . Brawler 3 | . . . . . . . . . 2 . . . . . . . . . . . . . . 1 . . . . . . . . Duelist 2 | . . . . . . . . . 1 . . . 1 . . . . . . . . . . . . . . . . . . . Sentry 29 | . . 2 . . 5 5 4 . 1 . 1 4 2 . . . 3 . . . . . . 2 . . . . . . . . Hunter 4 | . . . . . 1 . 1 . . . . . . . . . 1 . . . . . . . . . . . . . 1 . Programmer 39 | . . . . . . . 2 . . . 1 3 . . . 1 8 . 2 . . 9 . 7 . 1 . . . . 5 . Behemoth 1 | . . . . . . . . . . . . . . . . . . . . . 1 . . . . . . . . . . . M Guard 1 | . . . . . . . . . . . . . . . . . . . . . . . . . . . . . . . . 1 Enhanced Grunt 4 | . . . . . . . . . . 4 . . . . . . . . . . . . . . . . . . . . . . Lightning 3 | . . . . . . . . . . . . . . . . 3 . . . . . . . . . . . . . . . . Combat Programmer 9 | . . . . . . . . . . . . 1 . . . 1 2 . . . . 2 . 1 . . . . 2 . . . Thug 1 | . . . . . . . . . . . . . . . . . . . . 1 . . . . . . . . . . . . Best Kill Streak 27 | 2 5 3 . 4 7 3 27 4 4 2 3 6 2 . 4 2 4 . 2 4 1 4 . 9 . 1 . 2 2 1 19 1 Combat Bots Only 14 | . 5 3 . 3 5 3 12 4 4 2 3 5 2 . . 2 4 . 2 4 1 4 . 6 . 1 . 2 1 . 14 1 Max Kills in Single Turn 10 | 1 2 3 . 3 3 1 10 4 2 1 1 3 1 . 1 1 2 . 1 2 1 2 . 2 . 1 . 1 1 1 6 1 Gunslinging . | . . . . . . . . . . . . . . . . . . . . . . . . . . . . . . . . . Exploded 4 | . 2 3 . 3 3 . 3 4 2 . . 3 . . . . 1 . . 2 . . . 1 . . . . . . 4 1 Melee 1 | . . . . . . . . 1 1 1 1 1 1 . . 1 1 . . . . . . . . . . . 1 . . . Uniques/NPCs Destroyed 1 | . . . . . . . . . . 1 . . . . . . . . . . . . . . . . . . . . . . Data Miner (-7/Data Miner) Combat | -11 -10 -10 -10 -9 -8 -8 -7 -7 -7 -7 -6 -6 -6 -6 -6 -6 -5 -5 -5 -5 -4 -4 -4 -4 -4 -4 -4 -3 -3 -2 -1 -1 -------- Run | Jun Mat Min Exi Min Mat Gar Fac Low Low Dat Pro Fac Ext Cet Arc Hub Fac Upp Upp War Pro Fac Was Fac Upp Upp Zhi Pro Res Res Acc Com Damage Taken 15834 | . 386 126 . 130 860 306 1688 59 1256 606 230 1275 339 91 34 3108 1683 17 8 17 103 473 24 1050 . 6 . 13 268 14 1053 611 Core 1241 | . 72 40 . 13 119 11 83 13 130 46 . 88 . . 18 153 145 . 2 . . 56 . 157 . . . . 17 . 78 . Absorbed by Shields 3524 | . . . . . . 25 370 10 . . . 199 152 45 11 92 416 17 6 17 97 365 23 418 . 4 . 12 204 14 730 297 Redirected to Shielding 43 | . . . . . . . . . . . . . . . . . 43 . . . . . . . . . . . . . . . Regen/Repaired (Parts) 2823 | . . . . . 196 . 205 . . . . 478 . . . . 809 . . 84 . 112 . 279 . . . . 199 181 280 . Core Remaining (%) 81 | 100 . . . 50 . 76 . . . . 61 . . . . 69 . . . . 85 . . . . . . 81 98 100 . 95 Volleys Fired 687 | 3 63 5 . 6 67 29 100 1 15 . . 21 14 9 3 6 37 . 7 10 5 71 15 76 2 1 . 9 40 2 39 31 Largest 3 | 2 2 2 . 2 2 2 2 2 2 . . 2 2 1 1 1 2 . 2 2 2 2 2 2 1 2 . 2 2 2 3 3 Hottest 301 | 80 80 75 . 65 104 138 117 87 138 . . 117 96 48 48 48 138 . 138 138 138 151 151 151 120 181 . 151 174 174 301 301 Shots Fired 1094 | 6 124 9 . 12 107 39 168 3 28 . . 26 26 9 3 6 47 . 14 15 9 117 30 113 4 2 . 13 50 4 65 45 Gun 134 | 6 94 4 . . 30 . . . . . . . . . . . . . . . . . . . . . . . . . . . Cannon 858 | . 28 4 . 6 70 39 141 2 21 . . 18 26 9 3 6 44 . 14 10 9 115 30 103 4 2 . 13 50 4 55 32 Launcher 81 | . 2 1 . 6 7 . 27 1 7 . . 8 . . . . 3 . . 5 . 2 . 10 . . . . . . 2 . Special 21 | . . . . . . . . . . . . . . . . . . . . . . . . . . . . . . . 8 13 Kinetic 493 | . 28 4 . 6 58 5 124 2 5 . . 14 26 9 3 6 25 . 7 5 5 52 15 38 2 1 . 9 17 2 15 10 Thermal 382 | 6 94 . . . . . . . . . . . . . . . 19 . 7 5 4 63 15 65 2 1 . 4 33 2 40 22 Explosive 91 | . 2 1 . 6 7 . 27 1 7 . . . . . . . 3 . . 5 . 2 . 10 . . . . . . 10 10 Electromagnetic 125 | . . 4 . . 42 34 17 . 16 . . 12 . . . . . . . . . . . . . . . . . . . . Robot Hit Streak 19 | 4 7 6 . 7 8 12 19 1 4 . . 11 6 2 3 4 6 . 10 2 6 8 5 9 1 2 . 3 5 3 7 11 Robot Miss Streak 10 | 1 5 1 . 2 4 2 4 2 2 . . 1 3 2 . 5 10 . 1 2 3 5 2 4 . . . 3 3 1 5 2 Penetration Max 1 | . . . . . . . . . . . . . . . . . . . . . . 1 . 1 . . . . . . . . Secondary Targets 1 | . 1 . . . . . . . . . . . . . . . . . . . . . . . . . . . . . . . Max Gunslinging Chain 1 | . 1 . . . . . . . . . . . . . . . . . . . . . . . . . . . . . . . Shots Hit Robots 871 | 4 59 7 . 3 61 17 91 10 32 30 9 57 22 4 10 55 82 . 10 2 5 55 21 53 1 1 9 6 28 3 29 95 Core Hits 538 | 2 27 6 . 12 44 7 97 8 14 13 5 38 11 . 2 16 44 . 3 16 2 32 2 43 . 1 3 3 11 . 37 39 Critical Kills . | . . . . . . . . . . . . . . . . . . . . . . . . . . . . . . . . . Critical Parts Destroyed . | . . . . . . . . . . . . . . . . . . . . . . . . . . . . . . . . . Critical Strikes 54 | . 1 . . . . . 7 1 . 6 . 4 . 1 . 5 7 . . . . 5 1 5 . . . 1 2 2 3 3 Blast 28 | . 1 . . . . . 7 . . . . 1 . 1 . . 1 . . . . 5 1 5 . . . 1 1 2 2 . Sever 26 | . . . . . . . . 1 . 6 . 3 . . . 5 6 . . . . . . . . . . . 1 . 1 3 Melee Attacks 454 | . . . . . 3 . . 9 17 45 11 77 20 16 7 68 96 . . . . . . . . . 9 . 8 . . 68 Impact . | . . . . . . . . . . . . . . . . . . . . . . . . . . . . . . . . . Slashing 454 | . . . . . 3 . . 9 17 45 11 77 20 16 7 68 96 . . . . . . . . . 9 . 8 . . 68 Piercing . | . . . . . . . . . . . . . . . . . . . . . . . . . . . . . . . . . Sneak Attacks 28 | . . . . . 2 . . . 1 1 . 4 2 . 5 3 10 . . . . . . . . . . . . . . . Combat Hostiles . | . . . . . . . . . . . . . . . . . . . . . . . . . . . . . . . . . Follow-up Attacks . | . . . . . . . . . . . . . . . . . . . . . . . . . . . . . . . . . Damage Inflicted 55686 | 44 981 231 . 391 2362 414 6036 726 2134 1433 425 3439 1021 106 898 2934 5196 . 402 1477 179 3180 965 3938 92 56 860 303 1564 212 4709 8978 Guns 849 | 44 505 33 . . 267 . . . . . . . . . . . . . . . . . . . . . . . . . . . Cannons 16451 | . 280 56 . 20 1227 414 2260 . 319 . . 189 606 106 84 58 715 . 402 . 167 2557 965 2226 92 56 . 303 989 124 1186 1050 Explosions 16381 | . 179 142 . 352 670 . 3767 293 1058 . . 733 . . . . 749 . . 1477 . 303 . 1579 . . . . . . 3255 1824 Melee 20250 | . . . . . 186 . . 433 757 1433 425 2517 412 . 814 2876 3600 . . . . . . . . . 860 . 416 . . 5521 Ramming 1048 | . 17 . . 19 12 . 9 . . . . . 3 . . . 132 . . . 12 320 . 133 . . . . 159 88 66 78 Kinetic 8701 | . 280 56 . 20 567 . 1955 . 73 . . 85 606 106 84 58 371 . 98 . 92 1212 482 1207 . . . 266 419 83 273 308 Thermal 7443 | 44 505 . . 19 270 . . . 182 . . 351 . . . . 344 . 304 . 75 1345 483 1019 92 56 . 37 570 41 964 742 Explosive 15126 | . 179 142 . 333 400 . 3767 293 876 . . . . . . . 749 . . 1477 . 303 . 1579 . . . . . . 3204 1824 Electromagnetic 2411 | . . 33 . . 927 414 305 . 246 . . 486 . . . . . . . . . . . . . . . . . . . . Impact . | . . . . . . . . . . . . . . . . . . . . . . . . . . . . . . . . . Slashing 20957 | . . . . . 186 . . 433 757 1433 425 2517 412 . 814 2876 3600 . . . . . . . . . 860 . 416 . 202 6026 Piercing . | . . . . . . . . . . . . . . . . . . . . . . . . . . . . . . . . . Highest Corruption 40 | . . . . . . . 2 2 4 4 11 5 . . . 40 6 . . . . 8 8 9 9 9 9 9 . . 1 2 Average Corruption 5 | . . . . . . . 1 2 2 4 4 3 . . . 29 3 . . . . 4 8 8 9 9 9 9 . . 1 1 Corruption Purged 24 | . . . . . . . . . . . . 5 . . . . 12 . . . . 7 . . . . . . . . . . Corruption Blocked . | . . . . . . . . . . . . . . . . . . . . . . . . . . . . . . . . . Effects 354 | . . . . . . . 11 10 10 12 8 40 . . . 27 55 . . . . 44 16 55 19 10 5 21 . . 1 10 Message Errors 85 | . . . . . . . 1 3 . 2 4 8 . . . 8 16 . . . . 11 5 13 5 1 . 4 . . 1 3 Matter Fused 98 | . . . . . . . 4 3 3 6 . 15 . . . 7 16 . . . . 10 4 10 7 3 1 7 . . . 2 Heat Flow Errors 40 | . . . . . . . 4 1 . 1 . 3 . . . 4 4 . . . . 6 2 7 1 2 2 3 . . . . Energy Discharges 37 | . . . . . . . 1 . . 1 1 5 . . . 2 4 . . . . 4 3 11 1 2 . 1 . . . 1 Parts Rejected 7 | . . . . . . . . . . 1 1 2 . . . . 1 . . . . . . 2 . . . . . . . . Parts Fused 6 | . . . . . . . . . 1 . . 1 . . . 1 . . . . . . . 1 . . . 1 . . . 1 Data Loss (minor) 43 | . . . . . . . . 1 4 1 1 3 . . . 4 9 . . . . 3 2 6 2 . 1 3 . . . 3 Data Loss (major) 17 | . . . . . . . 1 . 1 . 1 1 . . . . 2 . . . . 4 . 1 1 2 1 2 . . . . Misfires 9 | . . . . . . . . 1 1 . . 2 . . . . . . . . . 1 . 2 2 . . . . . . . Alerts 7 | . . . . . . . . 1 . . . . . . . . 3 . . . . 2 . 1 . . . . . . . . Misdirections 1 | . . . . . . . . . . . . . . . . 1 . . . . . . . . . . . . . . . . Weapon Failures 4 | . . . . . . . . . . . . . . . . . . . . . . 3 . 1 . . . . . . . . Overload Shots . | . . . . . . . . . . . . . . . . . . . . . . . . . . . . . . . . . Overflow Damage 4077 | . 37 26 . 17 79 . 185 32 129 1 31 424 153 . 450 277 637 . 34 39 . 211 . 179 . . 223 28 113 64 301 407 Projectiles 620 | . 5 . . . 64 . 28 . . . . . . . . . 78 . 34 . . 127 . 104 . . . 28 87 16 49 . Explosions 721 | . 32 26 . 17 15 . 157 . 62 . . 48 . . . . 14 . . 39 . 5 . 43 . . . . . . 252 11 Melee 2736 | . . . . . . . . 32 67 1 31 376 153 . 450 277 545 . . . . 79 . 32 . . 223 . 26 48 . 396 Knockbacks 70 | . 6 . . . 1 . 20 . 1 . . . 3 1 . 3 4 . . . . 17 . 4 . . . 2 4 2 2 . Impact 10 | . 1 . . . . . . . . . . . . . . . 2 . . . . 3 . 1 . . . . 1 1 1 . Kinetic 57 | . 5 . . . 1 . 20 . 1 . . . 3 1 . 2 2 . . . . 14 . 3 . . . 1 2 1 1 . Secondary 3 | . . . . . . . . . . . . . . . . 1 . . . . . . . . . . . 1 1 . . . Self-Inflicted Damage 598 | . 4 5 . 76 101 . 192 . 118 . . 102 . . . . . . . . . . . . . . . . . . . . Shots 19 | . 1 1 . 3 2 . 6 . 2 . . 4 . . . . . . . . . . . . . . . . . . . . Rammed 14 | . 7 2 . 2 2 . 1 . . . . . . . . . . . . . . . . . . . . . . . . . Targets Rammed 50 | . 7 2 . 2 2 . 1 . . . . . 1 . . . 5 . . . 1 11 . 6 . . . . 6 1 3 2 Kicked 36 | . . . . . . . . . . . . . 1 . . . 5 . . . 1 11 . 6 . . . . 6 1 3 2 Crushed . | . . . . . . . . . . . . . . . . . . . . . . . . . . . . . . . . . Highest Temperature 354 | 36 297 85 . 45 210 276 334 200 248 188 1 273 345 74 40 294 354 . . . 156 248 189 199 152 197 144 192 189 188 187 192 Average Temperature 80 | 18 58 45 . 20 57 70 79 120 101 100 1 98 150 30 20 132 90 . . . 74 78 86 76 47 78 76 79 75 96 74 69 Received Heat Transfer 2290 | . 123 54 . . 315 54 532 25 342 . 18 131 106 8 6 151 112 . . . . 37 . 158 . . . . . 4 94 20 Effects 11 | . . . . . . . 1 . 3 . . 1 1 . . 4 1 . . . . . . . . . . . . . . . Energy Bleed 5 | . . . . . . . 1 . . . . 1 1 . . 1 1 . . . . . . . . . . . . . . . Interference 6 | . . . . . . . . . 3 . . . . . . 3 . . . . . . . . . . . . . . . . Siege Activations . | . . . . . . . . . . . . . . . . . . . . . . . . . . . . . . . . . Robots Corrupted 4 | . . . . . 2 . 1 . 1 . . . . . . . . . . . . . . . . . . . . . . . Combat Hostiles 4 | . . . . . 2 . 1 . 1 . . . . . . . . . . . . . . . . . . . . . . . Parts Fried 22 | . . . . . 10 5 1 . . 1 . . 2 . . . . . . . . 3 . . . . . . . . . . Impact Corruptions 11 | . . . . . . . . . . . . . . . . . 3 . . . . 3 . 1 . . . . 2 2 . . Robots Melted . | . . . . . . . . . . . . . . . . . . . . . . . . . . . . . . . . . Combat Hostiles . | . . . . . . . . . . . . . . . . . . . . . . . . . . . . . . . . . Parts Melted 9 | . 1 . . . . . . . . . . 1 . . . . 3 . . . . 1 . 2 . . . . . . 1 . Heat Transferred 6723 | 100 1125 . . 50 250 . . . 150 . . 300 . . . . 296 . 259 . 74 1110 443 851 55 37 . 37 444 37 753 352 Parts Sabotaged . | . . . . . . . . . . . . . . . . . . . . . . . . . . . . . . . . . Parts Stolen . | . . . . . . . . . . . . . . . . . . . . . . . . . . . . . . . . . Parts Stripped . | . . . . . . . . . . . . . . . . . . . . . . . . . . . . . . . . . Power Chain Reactions 8 | . . . . . 1 . . . 1 . . 6 . . . . . . . . . . . . . . . . . . . . Missiles Intercepted 6 | . . . . . . . . . . . . . . . . . . . . . . . . . . . . . . . . 6 Alert | -11 -10 -10 -10 -9 -8 -8 -7 -7 -7 -7 -6 -6 -6 -6 -6 -6 -5 -5 -5 -5 -4 -4 -4 -4 -4 -4 -4 -3 -3 -2 -1 -1 ------- Run | Jun Mat Min Exi Min Mat Gar Fac Low Low Dat Pro Fac Ext Cet Arc Hub Fac Upp Upp War Pro Fac Was Fac Upp Upp Zhi Pro Res Res Acc Com Peak Influence 1078 | 10 276 116 . 200 608 370 1051 . . . . 315 410 593 433 588 979 . . . . 822 299 1078 . . . . 173 71 883 424 Initial 287 | . 6 28 . . 39 81 193 . . . . 75 74 147 237 32 142 . . . . 30 287 69 . . . . 158 44 . 225 Average 273 | 2 74 67 . 125 296 199 458 . . . . 160 271 343 281 251 406 . . . . 363 229 463 . . . . 86 36 378 276 Maximum Alert Level 3 | . 1 . . 1 2 1 3 . . . . 1 2 2 2 2 3 . . . . 3 1 3 . . . . . . 3 2 Low Security (%) 46 | 100 92 100 . 53 27 51 34 . . . . 67 24 33 19 37 45 . . . . 27 32 4 . . . . 100 100 30 . Level 1 32 | . 7 . . 46 49 48 29 . . . . 32 71 22 48 47 6 . . . . 35 67 46 . . . . . . 25 87 Level 2 12 | . . . . . 23 . 2 . . . . . 4 43 32 14 20 . . . . 24 . 33 . . . . . . 31 12 Level 3 8 | . . . . . . . 33 . . . . . . . . . 27 . . . . 12 . 15 . . . . . . 12 . Level 4 . | . . . . . . . . . . . . . . . . . . . . . . . . . . . . . . . . . Level 5 . | . . . . . . . . . . . . . . . . . . . . . . . . . . . . . . . . . High Security . | . . . . . . . . . . . . . . . . . . . . . . . . . . . . . . . . . Max Security . | . . . . . . . . . . . . . . . . . . . . . . . . . . . . . . . . . Squads Dispatched 119 | . 3 . . . 5 . 16 . 1 . . 14 1 . . 10 20 . . . . 19 . 11 . . . . 7 2 6 4 Investigation 28 | . 2 . . . . . 4 . . . . 6 1 . . 1 6 . . . . 3 . 2 . . . . . . 2 1 Extermination 24 | . . . . . . . 2 . . . . 3 . . . 2 5 . . . . 5 . 3 . . . . 1 . 2 1 Reinforcement 30 | . 1 . . . 2 . 4 . . . . 2 . . . 4 2 . . . . 5 . 3 . . . . 2 2 1 2 Assault 6 | . . . . . . . . . 1 . . . . . . 1 1 . . . . 2 . 1 . . . . . . . . Garrison 11 | . . . . . 3 . 6 . . . . . . . . . . . . . . 1 . . . . . . . . 1 . Intercept 20 | . . . . . . . . . . . . 3 . . . 2 6 . . . . 3 . 2 . . . . 4 . . . Searches Triggered . | . . . . . . . . . . . . . . . . . . . . . . . . . . . . . . . . . Construction Impeded 8 | . . . . . . . 3 . . . . 1 . . . 1 1 . . . . 1 . 1 . . . . . . . . Haulers Reinforced 3 | . . . . . . . 1 . . . . . . . . . . . . . . 1 . . . . . . . 1 . . Active Scanning Responses . | . . . . . . . . . . . . . . . . . . . . . . . . . . . . . . . . . Cargo Convoy Interrupts 1 | . . . . . . . 1 . . . . . . . . . . . . . . . . . . . . . . . . . Stealth | -11 -10 -10 -10 -9 -8 -8 -7 -7 -7 -7 -6 -6 -6 -6 -6 -6 -5 -5 -5 -5 -4 -4 -4 -4 -4 -4 -4 -3 -3 -2 -1 -1 --------- Run | Jun Mat Min Exi Min Mat Gar Fac Low Low Dat Pro Fac Ext Cet Arc Hub Fac Upp Upp War Pro Fac Was Fac Upp Upp Zhi Pro Res Res Acc Com Distress Signals 38 | . 1 . . . 3 . 2 . . . . 3 . 1 . 2 . . . 1 . 7 . 3 . . . . 5 7 3 . Communications Jammed 454 | . . . . . . . . . . . . . . . . 23 46 . . . . 76 . 33 . . . 1 9 . 266 . Distress Signals 447 | . . . . . . . . . . . . . . . . 22 46 . . . . 73 . 31 . . . . 9 . 266 . Times Spotted 605 | . 23 5 . 7 34 8 53 8 12 4 5 45 24 19 7 33 63 12 7 21 6 64 6 56 4 1 . 17 16 2 30 13 Peak Tracking Total 11 | . 4 3 . 3 6 3 7 4 10 2 3 5 7 5 2 5 6 4 2 11 2 7 1 8 1 1 . 7 7 1 8 6 Tactical Retreats 30 | . . . . . 3 2 4 . 1 . . 4 . . . 2 3 1 . 1 . 2 . . . . . . 4 . 3 . Traps | -11 -10 -10 -10 -9 -8 -8 -7 -7 -7 -7 -6 -6 -6 -6 -6 -6 -5 -5 -5 -5 -4 -4 -4 -4 -4 -4 -4 -3 -3 -2 -1 -1 ------- Run | Jun Mat Min Exi Min Mat Gar Fac Low Low Dat Pro Fac Ext Cet Arc Hub Fac Upp Upp War Pro Fac Was Fac Upp Upp Zhi Pro Res Res Acc Com Traps Triggered 29 | . . . . 1 1 3 2 . . . . 2 1 . . 1 4 . . . . 6 . 1 . . . . 6 . . 1 Indirectly . | . . . . . . . . . . . . . . . . . . . . . . . . . . . . . . . . . Trap Hack Attempts . | . . . . . . . . . . . . . . . . . . . . . . . . . . . . . . . . . Triggered . | . . . . . . . . . . . . . . . . . . . . . . . . . . . . . . . . . Disarmed . | . . . . . . . . . . . . . . . . . . . . . . . . . . . . . . . . . Reprogrammed . | . . . . . . . . . . . . . . . . . . . . . . . . . . . . . . . . . Reused 1 | . . . . . . . . . . 1 . . . . . . . . . . . . . . . . . . . . . . Traps Extracted 3 | . . . . . . . . . . 3 . . . . . . . . . . . . . . . . . . . . . . Installed 4 | . . . . . . . . . . 4 . . . . . . . . . . . . . . . . . . . . . . Triggered 13 | . . 1 . . . . 1 . . . . . . . . . . . . 10 . . . . . 1 . . . . . . Most Traps Carried 10 | . . . . . . . . . 10 10 5 5 5 5 5 5 5 5 5 5 5 5 5 . . . . . . . . . Exploded 1 | . . . . . . . . . . . . . . . . . . . . . . 1 . . . . . . . . . . Machines | -11 -10 -10 -10 -9 -8 -8 -7 -7 -7 -7 -6 -6 -6 -6 -6 -6 -5 -5 -5 -5 -4 -4 -4 -4 -4 -4 -4 -3 -3 -2 -1 -1 ---------- Run | Jun Mat Min Exi Min Mat Gar Fac Low Low Dat Pro Fac Ext Cet Arc Hub Fac Upp Upp War Pro Fac Was Fac Upp Upp Zhi Pro Res Res Acc Com Machines Disabled 51 | . 1 . . 2 2 . 1 . 2 . . 3 2 4 3 6 7 . . . . 6 . 9 . . . . . . 2 1 Max in Single Turn 2 | . 1 . . 1 2 . 1 . 2 . . 1 1 1 . . . . . . . 1 . 1 . . . . . . 1 . Garrison Access 12 | . . . . . . . 1 . . . . 1 . . . 1 1 . . . . 3 . 1 . . . . 2 2 . . Network Hub 4 | . . . . . . . . . . . . . . . . 4 . . . . . . . . . . . . . . . . Energy Cycler 1 | . . . . . . . . . . . . . . . . . . . . . . . . . . . . . . . 1 . Machines Repaired . | . . . . . . . . . . . . . . . . . . . . . . . . . . . . . . . . . Machines Sabotaged . | . . . . . . . . . . . . . . . . . . . . . . . . . . . . . . . . . Overloaded Fab Kills . | . . . . . . . . . . . . . . . . . . . . . . . . . . . . . . . . . Hacking | -11 -10 -10 -10 -9 -8 -8 -7 -7 -7 -7 -6 -6 -6 -6 -6 -6 -5 -5 -5 -5 -4 -4 -4 -4 -4 -4 -4 -3 -3 -2 -1 -1 --------- Run | Jun Mat Min Exi Min Mat Gar Fac Low Low Dat Pro Fac Ext Cet Arc Hub Fac Upp Upp War Pro Fac Was Fac Upp Upp Zhi Pro Res Res Acc Com Machines Accessed 150 | . 7 . 2 1 7 1 8 2 . 4 . 21 10 2 . 6 21 1 1 1 . 18 . 9 . 1 5 . 6 2 9 5 Terminals 76 | . 5 . . . 4 1 2 . . . . 9 9 2 . 6 9 . . . . 8 . 5 . 1 . . 3 1 6 5 Fabricators 20 | . . . . . . . 3 . . . . 5 . . . . 5 . . . . 3 . 2 . . . . . . 2 . Repair Stations 17 | . . . . . 1 . 1 . . . . 5 . . . . 4 . . . . 2 . 1 . . . . 1 1 1 . Recycling Units 5 | . 2 . . . 1 . . . . . . . 1 . . . . . . . . 1 . . . . . . . . . . Scanalyzers 4 | . . . . . . . . . . . . 1 . . . . 2 . . . . 1 . . . . . . . . . . Garrison Access 11 | . . . . . 1 . 2 . . . . 1 . . . . 1 . . . . 3 . 1 . . . . 2 . . . Total Hacks 535 | . 23 . 2 1 18 3 13 3 . 28 . 65 16 3 . 15 116 1 1 5 . 84 . 52 . 1 14 . 20 7 32 12 Successful 302 | . 13 . 2 1 11 1 7 3 . 28 . 36 7 1 . 8 69 1 1 5 . 36 . 19 . 1 14 . 14 3 15 6 Failed 232 | . 9 . . . 7 2 6 . . . . 29 9 2 . 7 47 . . . . 48 . 33 . . . . 6 4 17 6 Catastrophic 44 | . 1 . . . 1 . 2 . . . . 5 1 . . 2 7 . . . . 9 . 7 . . . . . 1 7 1 Database Lockouts 1 | . 1 . . . . . . . . . . . . . . . . . . . . . . . . . . . . . . . Manual 203 | . 17 . 1 . 7 . 3 . . . . 26 1 1 . 13 34 . . 1 . 39 . 19 . . . . 11 3 17 10 Terminals 270 | . 20 . . . 12 3 3 . . . . 26 15 3 . 15 47 . . . . 48 . 28 . 1 . . 12 3 22 12 Fabricators 76 | . . . . . . . 4 . . . . 17 . . . . 23 . . . . 19 . 8 . . . . . . 5 . Repair Stations 83 | . . . . . 2 . 3 . . . . 20 . . . . 23 . . . . 9 . 12 . . . . 5 4 5 . Recycling Units 8 | . 3 . . . 3 . . . . . . . 1 . . . . . . . . 1 . . . . . . . . . . Scanalyzers 24 | . . . . . . . . . . . . 1 . . . . 22 . . . . 1 . . . . . . . . . . Garrison Access 19 | . . . . . 1 . 3 . . . . 1 . . . . 1 . . . . 6 . 4 . . . . 3 . . . Terminal Hacks 134 | . 6 . 2 1 4 1 2 3 . 28 . 5 6 1 . 4 14 1 1 5 . 14 . 4 . 1 14 . 7 1 6 3 Record 22 | . . . 1 . . . . 2 . 11 . . . 1 . . . . . . . . . . . 1 6 . . . . . Part Schematic 17 | . . . . . . . . . . 10 . 1 . . . . 1 . . . . . . . . . 4 . 1 . . . Robot Schematic 5 | . 1 . . . . . . . . 4 . . . . . . . . . . . . . . . . . . . . . . Robot Analysis 2 | . 2 . . . . . . . . . . . . . . . . . . . . . . . . . . . . . . . Prototype ID Bank 15 | . 2 . . . 1 . . . . 3 . . . . . . . . . 5 . . . . . . 4 . . . . . Open Door 12 | . . . . 1 . . . 1 . . . . 6 . . . . 1 1 . . . . . . . . . . . 1 1 Level Access Points 3 | . . . . . . . . . . . . . . . . . 1 . . . . 1 . . . . . . 1 . . . Branch Access Points 5 | . . . . . . . 1 . . . . . . . . . 1 . . . . 1 . 1 . . . . 1 . . . Emergency Access Points 3 | . . . . . . 1 . . . . . . . . . 1 1 . . . . . . . . . . . . . . . Alert Level 10 | . . . . . 1 . 1 . . . . 1 . . . . 3 . . . . 2 . 1 . . . . . . 1 . Unreport Threat 22 | . . . . . 2 . . . . . . 3 . . . 2 3 . . . . 4 . 2 . . . . 1 1 4 . Locate Traps 2 | . 1 . . . . . . . . . . . . . . . 1 . . . . . . . . . . . . . . . Dispatch Records 1 | . . . . . . . . . . . . . . . . . . . . . . . . . . . . . . . . 1 Security Status 1 | . . . . . . . . . . . . . . . . . 1 . . . . . . . . . . . . . . . Patrol Status 4 | . . . . . . . . . . . . . . . . 1 1 . . . . 1 . . . . . . 1 . . . Recall Investigation 2 | . . . . . . . . . . . . . . . . . . . . . . 2 . . . . . . . . . . Recall Extermination 3 | . . . . . . . . . . . . . . . . . 1 . . . . 1 . . . . . . 1 . . . Recall Reinforcements 2 | . . . . . . . . . . . . . . . . . . . . . . 2 . . . . . . . . . . Zone Layout 1 | . . . . . . . . . . . . . . . . . . . . . . . . . . . . . 1 . . . EX-Prototype ID Bank 1 | . . . 1 . . . . . . . . . . . . . . . . . . . . . . . . . . . . . Disengage Seal 1 | . . . . . . . . . . . . . . . . . . . . . . . . . . . . . . . . 1 Fabricator Hacks 30 | . . . . . . . 1 . . . . 9 . . . . 9 . . . . 4 . 4 . . . . . . 3 . Network Status 2 | . . . . . . . 1 . . . . 1 . . . . . . . . . . . . . . . . . . . . Load Schematic 16 | . . . . . . . . . . . . 5 . . . . 5 . . . . 3 . 2 . . . . . . 1 . Build 12 | . . . . . . . . . . . . 3 . . . . 4 . . . . 1 . 2 . . . . . . 2 . Repair Station Hacks 56 | . . . . . 2 . 2 . . . . 14 . . . . 18 . . . . 5 . 5 . . . . 4 2 4 . Scan Component 31 | . . . . . 1 . 1 . . . . 8 . . . . 10 . . . . 3 . 3 . . . . 2 1 2 . Repair 25 | . . . . . 1 . 1 . . . . 6 . . . . 8 . . . . 2 . 2 . . . . 2 1 2 . Recycling Unit Hacks 4 | . . . . . 2 . . . . . . . 1 . . . . . . . . 1 . . . . . . . . . . Retrieve Components 4 | . . . . . 2 . . . . . . . 1 . . . . . . . . 1 . . . . . . . . . . Scanalyzer 16 | . . . . . . . . . . . . . . . . . 15 . . . . 1 . . . . . . . . . . Insert Component 6 | . . . . . . . . . . . . . . . . . 5 . . . . 1 . . . . . . . . . . Analyze 10 | . . . . . . . . . . . . . . . . . 10 . . . . . . . . . . . . . . . Garrison Access Hacks 10 | . . . . . 1 . 1 . . . . 1 . . . . 1 . . . . 3 . 1 . . . . 2 . . . Unlock Access 1 | . . . . . 1 . . . . . . . . . . . . . . . . . . . . . . . . . . . Seal Access 9 | . . . . . . . 1 . . . . 1 . . . . 1 . . . . 3 . 1 . . . . 2 . . . Unauthorized Hacks 52 | . 7 . . . 2 . 1 . . . . 7 . . . 4 12 . . . . 8 . 5 . . . . 1 . 2 3 Terminals 35 | . 5 . . . 2 . . . . . . 5 . . . 4 5 . . . . 4 . 4 . . . . 1 . 2 3 Track 1 | . 1 . . . . . . . . . . . . . . . . . . . . . . . . . . . . . . . Assimilate 13 | . . . . . 1 . . . . . . 2 . . . 3 2 . . . . 2 . 2 . . . . . . . 1 Botnet 19 | . 2 . . . 1 . . . . . . 3 . . . 1 3 . . . . 2 . 2 . . . . 1 . 2 2 Operators 2 | . 2 . . . . . . . . . . . . . . . . . . . . . . . . . . . . . . . Fabricators 15 | . . . . . . . 1 . . . . 2 . . . . 7 . . . . 4 . 1 . . . . . . . . Prioritize 8 | . . . . . . . . . . . . 1 . . . . 4 . . . . 2 . 1 . . . . . . . . Liberate 6 | . . . . . . . . . . . . 1 . . . . 3 . . . . 2 . . . . . . . . . . Recompile 1 | . . . . . . . 1 . . . . . . . . . . . . . . . . . . . . . . . . . Repair Stations . | . . . . . . . . . . . . . . . . . . . . . . . . . . . . . . . . . Recycling Units 2 | . 2 . . . . . . . . . . . . . . . . . . . . . . . . . . . . . . . Tunnel 2 | . 2 . . . . . . . . . . . . . . . . . . . . . . . . . . . . . . . Scanalyzers . | . . . . . . . . . . . . . . . . . . . . . . . . . . . . . . . . . Garrison Access . | . . . . . . . . . . . . . . . . . . . . . . . . . . . . . . . . . Data Cores Recovered 3 | . . . . . . . 1 . . . . . . . . 1 . . . . . 1 . . . . . . . . . . Used 1 | . . . . . . . . . . . . . . . . . . . . . . 1 . . . . . . . . . . Hacking Detections 96 | . 6 . . . 4 1 4 . . . . 20 6 2 . 4 19 . . . . 9 . 8 . . . . 2 1 8 2 Full Trace Events 21 | . . . . . . . 2 . . . . 5 1 . . . 6 . . . . 3 . 2 . . . . . . 2 . Feedback Events 2 | . . . . . . . 1 . . . . 1 . . . . . . . . . . . . . . . . . . . . Corruption 1 | . . . . . . . . . . . . 1 . . . . . . . . . . . . . . . . . . . . Hackware Fried 1 | . . . . . . . 1 . . . . . . . . . . . . . . . . . . . . . . . . . Feedback Blocked . | . . . . . . . . . . . . . . . . . . . . . . . . . . . . . . . . . Robot Schematics Acquired 5 | . 1 . . . . . . . . 4 . . . . . . . . . . . . . . . . . . . . . . Robots Built . | . . . . . . . . . . . . . . . . . . . . . . . . . . . . . . . . . Authchips . | . . . . . . . . . . . . . . . . . . . . . . . . . . . . . . . . . Time . | . . . . . . . . . . . . . . . . . . . . . . . . . . . . . . . . . Total Robot Build Rating . | . . . . . . . . . . . . . . . . . . . . . . . . . . . . . . . . . Part Schematics Acquired 19 | . . . . . . . . . . 10 . 1 . . . . 3 . . . . . . . . . 4 . 1 . . . Parts Built 12 | . . . . . . . . . . . . 3 . . . . 4 . . . . 1 . 2 . . . . . . 2 . Authchips 1 | . . . . . . . . . . . . 1 . . . . . . . . . . . . . . . . . . . . Time 868 | . . . . . . . . . . . . 224 . . . . 252 . . . . 51 . 211 . . . . . . 130 . Total Part Build Rating 77 | . . . . . . . . . . . . 18 . . . . 24 . . . . 8 . 12 . . . . . . 15 . Parts Repaired 24 | . . . . . 1 . 1 . . . . 6 . . . . 7 . . . . 2 . 2 . . . . 2 1 2 . Time 1736 | . . . . . 44 . 22 . . . . 514 . . . . 733 . . . . 122 . 91 . . . . 122 16 72 . Parts Recycled . | . . . . . . . . . . . . . . . . . . . . . . . . . . . . . . . . . Recycled Matter . | . . . . . . . . . . . . . . . . . . . . . . . . . . . . . . . . . Retrieved Matter . | . . . . . . . . . . . . . . . . . . . . . . . . . . . . . . . . . Retrieved Components 18 | . . . . . . . . . . . . . 10 . . . . . . . . 8 . . . . . . . . . . Parts Scanalyzed 3 | . . . . . . . . . . . . . . . . . 3 . . . . . . . . . . . . . . . Part Schematics Acquired 2 | . . . . . . . . . . . . . . . . . 2 . . . . . . . . . . . . . . . Parts Damaged . | . . . . . . . . . . . . . . . . . . . . . . . . . . . . . . . . . Bothacking | -11 -10 -10 -10 -9 -8 -8 -7 -7 -7 -7 -6 -6 -6 -6 -6 -6 -5 -5 -5 -5 -4 -4 -4 -4 -4 -4 -4 -3 -3 -2 -1 -1 ------------ Run | Jun Mat Min Exi Min Mat Gar Fac Low Low Dat Pro Fac Ext Cet Arc Hub Fac Upp Upp War Pro Fac Was Fac Upp Upp Zhi Pro Res Res Acc Com Used RIF Installer . | . . . . . . . . . . . . . . . . . . . . . . . . . . . . . . . . . Robots Hacked 2 | . . . . . . . . . . . . . . . . . . . . . . . . . . . . . . . . 2 Non-combat . | . . . . . . . . . . . . . . . . . . . . . . . . . . . . . . . . . Combat 1 | . . . . . . . . . . . . . . . . . . . . . . . . . . . . . . . . 1 Robot Hacks Applied 1 | . . . . . . . . . . . . . . . . . . . . . . . . . . . . . . . . 1 parse_system 1 | . . . . . . . . . . . . . . . . . . . . . . . . . . . . . . . . 1 Manual 1 | . . . . . . . . . . . . . . . . . . . . . . . . . . . . . . . . 1 Relay Couplers Released 16 | . . . . . . . . . . . . . . . . 3 4 . . . . 4 . 3 . . . . . 2 . . Machine Destruction 5 | . . . . . . . . . . . . . . . . 3 . . . . . . . . . . . . . 2 . . Programmers 11 | . . . . . . . . . . . . . . . . . 4 . . . . 4 . 3 . . . . . . . . Fabnet Peak Effective % . | . . . . . . . . . . . . . . . . . . . . . . . . . . . . . . . . . Robots Rewired 24 | . . . . . . . . . 2 . . . 15 . . . . . . 5 . . . . . . . 2 . . . . Allies Hacked 3 | . . . . . . . . . . . . . . . . . . . . 1 . . . 1 . . . . 1 . . . Hacks Repelled . | . . . . . . . . . . . . . . . . . . . . . . . . . . . . . . . . . Allies | -11 -10 -10 -10 -9 -8 -8 -7 -7 -7 -7 -6 -6 -6 -6 -6 -6 -5 -5 -5 -5 -4 -4 -4 -4 -4 -4 -4 -3 -3 -2 -1 -1 -------- Run | Jun Mat Min Exi Min Mat Gar Fac Low Low Dat Pro Fac Ext Cet Arc Hub Fac Upp Upp War Pro Fac Was Fac Upp Upp Zhi Pro Res Res Acc Com Total Allies 60 | . . . . . . . . . 2 . . 7 25 5 . 1 3 . . 5 . 7 . 2 . . . 2 . . . 1 Largest Group 16 | . . . . . . . . . 2 . . 3 16 15 8 4 2 . . 5 1 3 . 2 . . . 2 2 . . 1 Highest-Rated Group 771 | . . . . . . . . . 46 . . 87 600 771 693 316 98 . . 266 65 141 . 55 . . . 89 89 . . 45 Highest-Rated Ally 159 | . . . . . . . . . 30 . . 37 159 159 159 96 49 . . 68 65 65 . 45 . . . 47 47 . . 45 Total Orders 194 | . . . . . . . . . . . . 4 7 3 2 11 29 6 9 4 13 22 7 15 16 2 . 14 12 1 15 2 STAY 7 | . . . . . . . . . . . . . 1 2 . 2 . . . . . . . . . . . . 1 . . 1 FOLLOW 19 | . . . . . . . . . . . . . 1 1 . . 1 1 1 1 1 2 . . 5 1 . 3 1 . . . EXPLORE 1 | . . . . . . . . . . . . . . . . . . . . 1 . . . . . . . . . . . . RETURN 167 | . . . . . . . . . . . . 4 5 . 2 9 28 5 8 2 12 20 7 15 11 1 . 11 10 1 15 1 Ally Attacks 2355 | . . . . . . . . . 3 . . 38 174 135 38 100 287 83 55 12 102 342 149 227 103 1 . 162 60 6 166 112 Total Damage 45770 | . . . . . . . . . 58 . . 655 4297 3111 931 2526 4373 1806 1058 451 1887 6612 3119 4003 1887 28 . 3022 729 146 2931 2140 Kills 272 | . . . . . . . . . . . . 10 24 23 4 20 35 14 8 1 6 48 6 30 8 . . 15 5 1 14 . Allies Corrupted 8 | . . . . . . . . . . . . . 1 . . . 1 . . 2 . 1 . 1 . . . . 2 . . . Allies Melted 2 | . . . . . . . . . . . . . 1 . . . . . . . 1 . . . . . . . . . . . Intel | -11 -10 -10 -10 -9 -8 -8 -7 -7 -7 -7 -6 -6 -6 -6 -6 -6 -5 -5 -5 -5 -4 -4 -4 -4 -4 -4 -4 -3 -3 -2 -1 -1 ------- Run | Jun Mat Min Exi Min Mat Gar Fac Low Low Dat Pro Fac Ext Cet Arc Hub Fac Upp Upp War Pro Fac Was Fac Upp Upp Zhi Pro Res Res Acc Com Robot Analysis Total 133 | . 2 . . . . . . . . 131 . . . . . . . . . . . . . . . . . . . . . . Derelict Logs Recovered 12 | . . 1 . 2 . . . 1 1 . . . . . . . . 2 1 . . . . . 3 1 . . . . . . Drone Launches 362 | . . . . . . . . . . . . 9 9 . 5 15 57 14 14 . 27 56 11 44 20 4 . 22 17 4 28 6 Drone Recoveries 341 | . . . . . . . . . . . . 9 8 . 5 15 52 9 15 4 27 56 11 40 16 4 . 26 12 4 27 1 Exploration | -11 -10 -10 -10 -9 -8 -8 -7 -7 -7 -7 -6 -6 -6 -6 -6 -6 -5 -5 -5 -5 -4 -4 -4 -4 -4 -4 -4 -3 -3 -2 -1 -1 ------------- Run | Jun Mat Min Exi Min Mat Gar Fac Low Low Dat Pro Fac Ext Cet Arc Hub Fac Upp Upp War Pro Fac Was Fac Upp Upp Zhi Pro Res Res Acc Com Turns Passed 36593 | 108 1884 774 410 771 1412 780 2139 757 805 526 371 3454 2133 592 989 1233 3910 746 686 822 798 2627 592 1646 672 313 221 613 1651 580 877 701 Spaces Moved 23552 | 55 959 454 256 447 948 552 1482 631 544 281 268 2022 1059 356 210 731 2432 666 603 479 440 1931 266 1152 592 291 183 500 1254 538 519 451 Core 3 | 2 . . . 1 . . . . . . . . . . . . . . . . . . . . . . . . . . . . Treads 2166 | 53 959 454 256 404 . . . . . 40 . . . . . . . . . . . . . . . . . . . . . . Legs 17052 | . . . . . . . . . . 109 268 2022 1059 356 210 731 2432 666 603 479 440 1931 266 1152 592 291 183 500 1254 538 519 451 Wheels 4331 | . . . . 42 948 552 1482 631 544 132 . . . . . . . . . . . . . . . . . . . . . . Hover . | . . . . . . . . . . . . . . . . . . . . . . . . . . . . . . . . . Flight . | . . . . . . . . . . . . . . . . . . . . . . . . . . . . . . . . . Fastest Speed 50 | 50 160 160 160 115 100 115 100 115 115 120 120 120 120 120 120 100 100 105 105 105 169 101 101 101 105 105 105 105 100 100 100 100 Average Speed 117 | 156 160 160 160 157 111 115 114 115 127 138 120 120 135 120 120 112 113 105 105 134 169 102 101 101 105 105 105 105 101 100 103 106 Slowest Speed 950 | 160 160 160 160 950 115 115 115 115 145 330 120 120 190 120 120 120 176 105 105 175 169 105 101 105 105 105 105 105 105 100 172 171 Overloaded Moves . | . . . . . . . . . . . . . . . . . . . . . . . . . . . . . . . . . Propulsion Burnouts . | . . . . . . . . . . . . . . . . . . . . . . . . . . . . . . . . . Robots Hopped 3 | . . . . . . . . . . . . . . . . . . . . . . . . . . . . . 3 . . . Cave-ins Triggered . | . . . . . . . . . . . . . . . . . . . . . . . . . . . . . . . . . Exploration Rate (%) 61 | 4 99 90 61 92 64 47 41 69 64 80 37 42 96 60 86 53 55 93 88 91 71 48 100 30 83 65 63 73 27 20 17 15 Regions Visited 32 Branch Regions 20 Pre-discovered Areas 29 | . 2 . 1 1 . . . . . 22 . . . . . . . . . . . . . . . . 3 . . . . . Known Exits Taken 8 | . . . . . 1 . 1 . . . . . . . . . 1 . . . 1 . . 1 . . . 1 1 1 . . Unknown Exits Taken 21 | 1 1 1 1 1 . . . 1 1 1 1 1 1 1 1 1 . 1 1 1 . . . . 1 1 1 . . . 1 . Scrap Searched 23 | . . 1 . 1 . . . 2 5 . . . . . . . . 3 3 . . . . . 3 3 . 2 . . . . Spaces Dug 201 | . . . . . 10 . 11 . . . . 43 3 1 . 10 37 . . 8 . 19 . 26 . . . . 18 . 11 4 Terrain Destroyed 1009 | . 10 8 . 47 58 . 178 20 112 . . 55 5 2 . 11 54 . 2 62 3 70 6 80 1 2 . 6 24 1 151 41 Melee 70 | . . . . . 1 . . . . . . 27 3 1 . 10 28 . . . . . . . . . . . . . . . Projectile 229 | . . . . . . . 17 1 1 . . 7 2 1 . 1 14 . 2 8 3 52 6 44 1 2 . 6 24 1 29 7 AOE 710 | . 10 8 . 47 57 . 161 19 111 . . 21 . . . . 12 . . 54 . 18 . 36 . . . . . . 122 34 Terrain Rammed . | . . . . . . . . . . . . . . . . . . . . . . . . . . . . . . . . . Walls Destroyed . | . . . . . . . . . . . . . . . . . . . . . . . . . . . . . . . . . Machines Disabled . | . . . . . . . . . . . . . . . . . . . . . . . . . . . . . . . . . Actions | -11 -10 -10 -10 -9 -8 -8 -7 -7 -7 -7 -6 -6 -6 -6 -6 -6 -5 -5 -5 -5 -4 -4 -4 -4 -4 -4 -4 -3 -3 -2 -1 -1 --------- Run | Jun Mat Min Exi Min Mat Gar Fac Low Low Dat Pro Fac Ext Cet Arc Hub Fac Upp Upp War Pro Fac Was Fac Upp Upp Zhi Pro Res Res Acc Com Total 31017 | 67 1179 489 257 502 1187 660 1737 657 616 388 309 2964 1712 497 943 1081 3462 717 642 642 489 2460 561 1520 643 297 204 577 1569 576 808 605 Wait 5206 | . 135 21 . 31 137 36 106 12 13 24 26 791 502 110 701 246 776 30 20 105 21 375 271 223 30 . . 34 210 18 194 8 Move 23516 | 54 958 453 255 446 948 551 1481 630 543 280 267 2021 1058 355 209 730 2431 665 602 478 439 1931 265 1151 591 290 182 499 1247 537 518 451 Hop 3 | . . . . . . . . . . . . . . . . . . . . . . . . . . . . . 3 . . . Pick Up 221 | 2 4 1 1 7 9 4 7 1 5 7 . 16 4 1 4 4 27 8 4 8 8 17 4 13 7 2 2 6 9 4 16 9 Fast Attach 96 | 7 3 2 . 1 5 4 7 2 . 6 1 7 . . 2 4 13 . . 2 . 1 . 8 . . 4 . 9 4 2 2 Attach 62 | . . . . . 3 1 7 . 7 3 1 6 1 . . 4 10 . . . . 4 . . . . 1 . 5 1 4 4 Detach 29 | . 2 1 . 2 . . . 1 . 2 . 2 . . 1 1 7 . . 1 . . . . . . 1 . 3 . . 5 Swap 195 | 1 5 4 . 2 6 2 14 1 7 8 3 15 2 3 6 11 20 1 2 8 . 19 . 12 1 1 . 2 15 3 7 14 Drop 231 | . 2 . 1 5 7 9 6 . 1 9 . 7 4 3 9 6 26 9 4 12 8 17 4 19 7 2 5 6 11 5 18 9 Fire 687 | 3 63 5 . 6 67 29 100 1 15 . . 21 14 9 3 6 37 . 7 10 5 71 15 76 2 1 . 9 40 2 39 31 Melee 454 | . . . . . 3 . . 9 17 45 11 77 20 16 7 68 96 . . . . . . . . . 9 . 8 . . 68 Ram 3 | . . . . . 2 . 1 . . . . . . . . . . . . . . . . . . . . . . . . . Kick 36 | . . . . . . . . . . . . . 1 . . . 5 . . . 1 11 . 6 . . . . 6 1 3 2 Crush 11 | . 7 2 . 2 . . . . . . . . . . . . . . . . . . . . . . . . . . . . Escape Stasis 37 | . . . . . . 24 8 . . . . . 5 . . . . . . . . . . . . . . . . . . . Rewire 140 | . . . . . . . . . 8 . . . 99 . . . . . . 18 . . . . . . . 15 . . . . Trap 4 | . . . . . . . . . . 4 . . . . . . . . . . . . . . . . . . . . . . Miscellaneous 86 | . . . . . . . . . . . . 1 2 . 1 1 14 4 3 . 7 14 2 12 5 1 . 6 3 1 7 2 Route ------- -11/Junkyard -10/Materials (discovered 5 exits: [*Mat x3] / [*Min x2]) -10/Mines (discovered 3 exits: [*Mat x2] / *Exi) -10/Exiles -9/Mines (discovered 2 exits: *Mat x2) -8/Materials (discovered 2 exits: *Fac / Gar) -8/Garrison -7/Factory (discovered 6 exits: *Fac x3 / Sto / *Low x2) -7/Lower Caves -7/Lower Caves -7/Data Miner -6/Proximity Caves -6/Factory (discovered 3 exits: *Fac / Low / *Ext) -6/Extension (discovered 2 exits: *Fac / *Cet) -6/Cetus -6/Archives (discovered 3 exits: *Fac / *Hub x2) -6/Hub_04(d) (discovered 2 exits: *Fac x2) -5/Factory (discovered 6 exits: *Fac x4 / *Upp x2) -5/Upper Caves -5/Upper Caves (discovered 2 exits: *Fac / *War) -5/Warlord -4/Proximity Caves -4/Factory (discovered 7 exits: *Res x4 / Upp x2 / Arm) -4/Waste -4/Factory (discovered 4 exits: *Res / *Upp x2 / Arm) -4/Upper Caves -4/Upper Caves (discovered 2 exits: *Res / *Zhi) -4/Zhirov -3/Proximity Caves -3/Research (discovered 5 exits: *Res x3 / Qua x2) -2/Research -1/Access -1/Command Free Derelict Territories History --------- Turn | Location | Event 20 | -11/Junkyard | Discovered new exit (range 15) 109 | -11/Junkyard | Entered Materials 302 | -10/Materials | Build established: Mutant 607 | -10/Materials | Discovered new exit (range 7) 720 | -10/Materials | Discovered new exit (range 10) 723 | -10/Materials | Central database locked down 1073 | -10/Materials | Discovered new exit (range 9) 1616 | -10/Materials | Discovered new exit (range 8) 1868 | -10/Materials | Discovered new exit (range 6) 1993 | -10/Materials | Entered Mines 2043 | -10/Mines | Assembled infested the area 2266 | -10/Mines | Discovered new exit (range 10) 2357 | -10/Mines | Deemed a non-threat by the Exiles lab entrance 2359 | -10/Mines | Discovered new exit (range 5) 2575 | -10/Mines | Discovered new exit (range 8) 2767 | -10/Mines | Entered Exiles 2806 | -10/Exiles | Met 8R-AWN 2830 | -10/Exiles | Met EX-HEX 2895 | -10/Exiles | Met EX-DEC 2903 | -10/Exiles | Learned location of Zion (-6) 2915 | -10/Exiles | Build established: Scavenger-Mutant 2935 | -10/Exiles | Met EX-BIN 2956 | -10/Exiles | Aligned with FarCom system 2958 | -10/Exiles | Given EX-Vault access code 2998 | -10/Exiles | Opened EX-Vault 3010 | -10/Exiles | Found Longsword +1 3041 | -10/Exiles | Warned to stay clear of 0b10 Research branches 3156 | -10/Exiles | Discovered new exit (range 15) 3177 | -10/Exiles | Left Exiles lab with Longsword +1 3177 | -10/Exiles | Entered Mines 3184 | -9/Mines | Met a Derelict bent on vengeance 3214 | -9/Mines | Discovered new exit (range 11) 3470 | -9/Mines | Learned location of Storage (-7) 3477 | -9/Mines | Received a Rocket Launcher from a helpful Derelict 3785 | -9/Mines | Learned Materials security intel 3801 | -9/Mines | Discovered new exit (range 9) 3848 | -9/Mines | Met a Derelict who couldn't figure out how to use a Trap Extractor 3948 | -9/Mines | Entered Materials 3948 | -8/Materials | Evolved 4 slots: Propulsion x2, Utility x2 4067 | -8/Materials | Garrison activated, responded to threat 4186 | -8/Materials | Build established: Mutant 4857 | -8/Materials | Repaired Arm. Huge Wheel 5130 | -8/Materials | Discovered new exit (range 16) 5358 | -8/Materials | Identified exit to Garrison 5360 | -8/Materials | Entered Garrison 5470 | -8/Garrison | Spotted B-75 Beast 5542 | -8/Garrison | Triggered checkpoint 5726 | -8/Garrison | Triggered checkpoint 5977 | -8/Garrison | Spotted B-75 Beast 6062 | -8/Garrison | Discovered new exit (range 8) 6140 | -8/Garrison | Entered Factory 6140 | -7/Factory | Evolved 2 slots: Utility x2 6141 | -7/Factory | Identified exit to Storage 6564 | -7/Factory | Repaired Arm. Huge Wheel 6606 | -7/Factory | Discovered new exit (range 11) 6884 | -7/Factory | Discovered new exit (range 5) 7116 | -7/Factory | Hacking Suite fried by hacking feedback 7461 | -7/Factory | Garrison activated, responded to threat 7591 | -7/Factory | Destroyed 12 combat bots 7751 | -7/Factory | Lost 3 parts (1p1u1w) 7859 | -7/Factory | Discovered new exit (range 15) 7935 | -7/Factory | Cargo convoy interrupted 8000 | -7/Factory | Identified exit to Lower Caves 8279 | -7/Factory | Entered Lower Caves 8458 | -7/Lower Caves | Learned Factory stockpile data 8616 | -7/Lower Caves | Encountered a Warlord checkpoint 8627 | -7/Lower Caves | Learned 4 Factory zone layouts 8869 | -7/Lower Caves | Discovered new exit (range 6) 9036 | -7/Lower Caves | Entered another Lower Caves area 9151 | -7/Lower Caves | Encountered a Warlord checkpoint 9158 | -7/Lower Caves | Learned Factory terminal intel 9535 | -7/Lower Caves | Attracted the attention of an 0b10 outpost 9572 | -7/Lower Caves | Lost 3 parts (1u2w) 9617 | -7/Lower Caves | Build established: Trapper-Mutant 9766 | -7/Lower Caves | Spotted B-75 Beast 9833 | -7/Lower Caves | Discovered new exit (range 6) 9841 | -7/Lower Caves | Entered Data Miner 9841 | -7/Data Miner | Discovered new exit (range 6) 9866 | -7/Data Miner | Met Data Miner 9919 | -7/Data Miner | Learned location of Section 7 (-3) 9919 | -7/Data Miner | Acquired the access code to Warlord's prototype stash 9949 | -7/Data Miner | Received God Mode back door access code from Data Miner 9981 | -7/Data Miner | Destroyed Data Miner 9983 | -7/Data Miner | Found Prototype Hackware 9984 | -7/Data Miner | Interfaced with the Data Conduit 10112 | -7/Data Miner | Lost 3 parts (1n1u1w) 10322 | -7/Data Miner | Build established: Mutant 10367 | -7/Data Miner | Entered Proximity Caves 10674 | -6/Proximity Caves | Attracted the attention of an 0b10 checkpoint 10710 | -6/Proximity Caves | Discovered new exit (range 6) 10731 | -6/Proximity Caves | System corruption reached 10% 10738 | -6/Proximity Caves | Entered Factory 10738 | -6/Factory | Evolved 2 slots: Power x1, Utility x1 10739 | -6/Factory | Identified exit to Lower Caves 10741 | -6/Factory | Loaded intel: 250 machine locations 10742 | -6/Factory | Loaded intel: 27 terminal locations 11030 | -6/Factory | Build established: Scavenger-Mutant 11615 | -6/Factory | Fabricated Combat Drone Bay (x1) 12292 | -6/Factory | Fabricated Combat Drone Bay? 12543 | -6/Factory | Repaired Broken Enh. Flexi-carbon Leg? 12733 | -6/Factory | Intercept squad dispatched 12764 | -6/Factory | Spotted Tracker 12774 | -6/Factory | Allies destroyed Tracker 12819 | -6/Factory | Spotted Combat Programmer 12834 | -6/Factory | Destroyed Combat Programmer 13011 | -6/Factory | Repaired Broken Enh. Flexi-carbon Leg 13075 | -6/Factory | Repaired Antimatter Reactor 13636 | -6/Factory | Repaired Enh. Flexi-carbon Leg? 13884 | -6/Factory | Repaired Enh. Flexi-carbon Leg? 13953 | -6/Factory | Repaired Remote Shield 13994 | -6/Factory | Discovered new exit (range 16) 14123 | -6/Factory | Fabricated Combat Drone Bay (x1) 14167 | -6/Factory | Intercept squad dispatched 14174 | -6/Factory | Discovered new exit (range 16) 14192 | -6/Factory | Entered Extension 14193 | -6/Extension | Loaded intel: 31 machine locations 14232 | -6/Extension | Rescued a captive Derelict 14276 | -6/Extension | Rescued A7 14840 | -6/Extension | Rescued a captive Derelict 14841 | -6/Extension | Rescued a captive Derelict 14868 | -6/Extension | Rescued a captive Derelict 14953 | -6/Extension | Build established: Commander-Mutant 15198 | -6/Extension | Spotted B-75 Beast 15214 | -6/Extension | Spotted B-75 Beast 15217 | -6/Extension | Allies destroyed B-75 Beast 15236 | -6/Extension | Allies destroyed B-75 Beast 15462 | -6/Extension | Discovered new exit (range 16) 15465 | -6/Extension | Discovered new exit (range 14) 15513 | -6/Extension | Build established: Scavenger-Mutant 15622 | -6/Extension | Rescued a captive Derelict 15658 | -6/Extension | Rescued a captive Derelict 15658 | -6/Extension | Rescued a captive Derelict 15783 | -6/Extension | Rescued a captive Derelict 15800 | -6/Extension | Rescued a captive Derelict 16013 | -6/Extension | Build established: Commander-Mutant 16325 | -6/Extension | Entered Cetus 16325 | -6/Cetus | Accompanied by 15 allies (A7) 16326 | -6/Cetus | Loaded intel: 24 machine locations 16330 | -6/Cetus | Acquired a Cetus Manufacturing Module code from A7 16342 | -6/Cetus | Spotted Cetus Guard 16342 | -6/Cetus | Spotted Cetus Guard 16344 | -6/Cetus | Spotted Cetus Guard 16344 | -6/Cetus | Spotted Cetus Guard 16358 | -6/Cetus | Allies destroyed Cetus Guard 16366 | -6/Cetus | Allies destroyed Cetus Guard 16366 | -6/Cetus | Allies destroyed Cetus Guard 16372 | -6/Cetus | Allies destroyed Cetus Guard 16600 | -6/Cetus | Started Cetus Manufacturing Module 16625 | -6/Cetus | Manufactured an Enhanced Grunt 16650 | -6/Cetus | Manufactured an Enhanced Grunt 16665 | -6/Cetus | Build established: Scavenger-Mutant 16675 | -6/Cetus | Manufactured an Enhanced Grunt 16700 | -6/Cetus | Manufactured an Enhanced Grunt 16725 | -6/Cetus | Manufactured an Enhanced Grunt 16778 | -6/Cetus | Escorted A7 to Cetus Mainframe 16807 | -6/Cetus | Found a strange terminal 16810 | -6/Cetus | Cetus Manufacturing Module disabled 16835 | -6/Cetus | Discovered new exit (range 15) 16917 | -6/Cetus | Entered Archives 16917 | -6/Archives | Accompanied by 8 allies (A7) 16918 | -6/Archives | Loaded intel: 8 machine locations 16922 | -6/Archives | Received a hacking code to weaken MAIN.C 16949 | -6/Archives | Discovered new exit (range 24) 17049 | -6/Archives | Discovered new exit (range 13) 17084 | -6/Archives | Discovered new exit (range 15) 17906 | -6/Archives | Entered Hub_04(d) 17906 | -6/Hub_04(d) | Accompanied by 4 allies 17907 | -6/Hub_04(d) | Loaded intel: 107 machine locations 18512 | -6/Hub_04(d) | Network Hub disabled 18512 | -6/Hub_04(d) | Network Hub disabled 18512 | -6/Hub_04(d) | Network Hub disabled 18561 | -6/Hub_04(d) | Spotted Lightning 18561 | -6/Hub_04(d) | Spotted Lightning 18562 | -6/Hub_04(d) | Network Hub disabled 18562 | -6/Hub_04(d) | Spotted Lightning 18612 | -6/Hub_04(d) | System corruption reached 10% 18634 | -6/Hub_04(d) | Destroyed Lightning 18662 | -6/Hub_04(d) | Destroyed Lightning 18667 | -6/Hub_04(d) | Found Exp. EM Disruption Field 18736 | -6/Hub_04(d) | Found Exp. Phase Shifter 18780 | -6/Hub_04(d) | Destroyed Lightning 18823 | -6/Hub_04(d) | Intercept squad dispatched 18832 | -6/Hub_04(d) | Spotted Tracker 18840 | -6/Hub_04(d) | System corruption reached 30% 18843 | -6/Hub_04(d) | Spotted Combat Programmer 18861 | -6/Hub_04(d) | Allies destroyed Tracker 18892 | -6/Hub_04(d) | Destroyed Combat Programmer 19131 | -6/Hub_04(d) | Discovered new exit (range 7) 19132 | -6/Hub_04(d) | Discovered new exit (range 6) 19139 | -6/Hub_04(d) | Entered Factory 19139 | -5/Factory | Evolved 2 slots: Utility x2 19140 | -5/Factory | Loaded intel: 267 machine locations 19220 | -5/Factory | Discovered new exit (range 3) 19258 | -5/Factory | Discovered new exit (range 13) 19380 | -5/Factory | Discovered new exit (range 16) 19449 | -5/Factory | Repaired Broken Enh. Biometal Leg 19587 | -5/Factory | Repaired Broken Enh. Biometal Leg? 19747 | -5/Factory | Fabricated Combat Drone Bay (x1) 19770 | -5/Factory | Intercept squad dispatched 19794 | -5/Factory | Spotted Tracker 19805 | -5/Factory | Allies destroyed Tracker 19828 | -5/Factory | Spotted Combat Programmer 19839 | -5/Factory | Destroyed Combat Programmer 20342 | -5/Factory | Identified exit to Upper Caves 20342 | -5/Factory | Identified exit to Factory 20516 | -5/Factory | Fabricated Combat Drone Bay? 20885 | -5/Factory | Intercept squad dispatched 20893 | -5/Factory | Spotted Tracker 20927 | -5/Factory | Allies destroyed Tracker 20928 | -5/Factory | Spotted Combat Programmer 20953 | -5/Factory | Destroyed Combat Programmer 21239 | -5/Factory | First assault squad dispatched 21436 | -5/Factory | Intercept squad dispatched 21461 | -5/Factory | Spotted Tracker 21474 | -5/Factory | Allies destroyed Tracker 21496 | -5/Factory | Spotted Combat Programmer 21512 | -5/Factory | Spotted B-75 Beast 21685 | -5/Factory | Fabricated Combat Drone Bay (x1) 22012 | -5/Factory | Repaired Exp. EM Disruption Field 22277 | -5/Factory | Fabricated Combat Drone Bay (x1) 22277 | -5/Factory | Repaired Enh. Biometal Leg? 22431 | -5/Factory | Repaired Adv. System Restoration Module 22540 | -5/Factory | Repaired Centrium Medium Armor Plating 22649 | -5/Factory | Repaired Enh. Biometal Leg 22742 | -5/Factory | Identified Deep Network Scanner 23049 | -5/Factory | Entered Upper Caves 23049 | -5/Upper Caves | Accompanied by 1 ally 23302 | -5/Upper Caves | Allies destroyed B-75 Beast 23666 | -5/Upper Caves | Discovered new exit (range 17) 23746 | -5/Upper Caves | Learned Factory emergency access door positions 23795 | -5/Upper Caves | Entered another Upper Caves area 23795 | -5/Upper Caves | Accompanied by 6 allies 23866 | -5/Upper Caves | Discovered exit to Factory (range 7) 24169 | -5/Upper Caves | Learned Factory stockpile data 24294 | -5/Upper Caves | Discovered new exit (range 15) 24481 | -5/Upper Caves | Entered Warlord 24481 | -5/Warlord | Accompanied by 5 allies 24661 | -5/Warlord | Found Prototype Special Weapon 24663 | -5/Warlord | Found Prototype Special Weapon 24694 | -5/Warlord | Discovered new exit (range 63) 24783 | -5/Warlord | Met Warlord 24798 | -5/Warlord | Opened Warlord's prototype stash 24799 | -5/Warlord | Warlord's base attacked by MAIN.C 24803 | -5/Warlord | Found Vortex Chain Reactor 24827 | -5/Warlord | Identified RU-N14's Throwing Claymores v3 (x2) 24830 | -5/Warlord | Found Prototype Hackware 24858 | -5/Warlord | Found Exp. Cloaking Device 25078 | -5/Warlord | Build established: Commander-Mutant 25149 | -5/Warlord | Warlord forces counterattacked 25157 | -5/Warlord | Spotted Executioner 25205 | -5/Warlord | Spotted Striker 25208 | -5/Warlord | Spotted Executioner 25303 | -5/Warlord | Entered Proximity Caves 25303 | -4/Proximity Caves | Accompanied by 2 allies 25303 | -4/Proximity Caves | Spotted B-86 Titan 25321 | -4/Proximity Caves | Destroyed B-86 Titan 25388 | -4/Proximity Caves | Build established: Mutant 25988 | -4/Proximity Caves | Discovered exit to Factory (range 8) 26101 | -4/Proximity Caves | Entered Factory 26101 | -4/Factory | Accompanied by 1 ally 26101 | -4/Factory | Evolved 2 slots: Propulsion x2 26104 | -4/Factory | Loaded intel: 254 machine locations 26284 | -4/Factory | Identified Ghost Barrier 26570 | -4/Factory | Noticed a derelict Sapper rigging charges 26806 | -4/Factory | Fabricated Enh. Biometal Leg? 27058 | -4/Factory | Identified exit to Upper Caves 27058 | -4/Factory | Identified exit to Armory 27058 | -4/Factory | Identified exit to Research 27319 | -4/Factory | Repaired Exp. Coolant Injector 27356 | -4/Factory | Intercept squad dispatched 27388 | -4/Factory | Spotted Tracker 27388 | -4/Factory | Spotted Tracker 27397 | -4/Factory | Repaired Broken Enh. Biometal Leg? 27401 | -4/Factory | Allies destroyed Tracker 27407 | -4/Factory | Allies destroyed Tracker 27452 | -4/Factory | Spotted Combat Programmer 27468 | -4/Factory | Spotted Combat Programmer 27471 | -4/Factory | Destroyed Combat Programmer 27495 | -4/Factory | Destroyed Combat Programmer 28112 | -4/Factory | Build established: Infiltrator-Mutant 28601 | -4/Factory | First assault squad dispatched 28649 | -4/Factory | Garrison activated, responded to threat 28728 | -4/Factory | Manually triggered Chute Trap 28728 | -4/Factory | Sucked down chute 28728 | -4/Factory | Entered Waste 28754 | -4/Waste | Spotted C-40 Crusher 28759 | -4/Waste | Allies destroyed C-40 Crusher 28810 | -4/Waste | Build established: Mutant 28844 | -4/Waste | Spotted C-40 Crusher 28844 | -4/Waste | Spotted C-40 Crusher 28850 | -4/Waste | Allies destroyed C-40 Crusher 28853 | -4/Waste | Allies destroyed C-40 Crusher 29019 | -4/Waste | Spotted C-40 Crusher 29029 | -4/Waste | Allies destroyed C-40 Crusher 29136 | -4/Waste | Spotted C-40 Crusher 29148 | -4/Waste | Allies destroyed C-40 Crusher 29213 | -4/Waste | Spotted C-40 Crusher 29226 | -4/Waste | Allies destroyed C-40 Crusher 29263 | -4/Waste | Discovered new exit (range 11) 29320 | -4/Waste | Entered Factory 29321 | -4/Factory | Loaded intel: 265 machine locations 29588 | -4/Factory | Fabricated Combat Drone Bay (x1) 29674 | -4/Factory | Discovered exit to Research (range 13) 30062 | -4/Factory | Build established: Infiltrator-Mutant 30355 | -4/Factory | Intercept squad dispatched 30384 | -4/Factory | Spotted Tracker 30393 | -4/Factory | Allies destroyed Tracker 30470 | -4/Factory | Spotted Combat Programmer 30501 | -4/Factory | Destroyed Combat Programmer 30570 | -4/Factory | First assault squad dispatched 30674 | -4/Factory | Build established: Mutant 30867 | -4/Factory | Fabricated Combat Drone Bay (x1) 30894 | -4/Factory | Repaired Enh. Biometal Leg 30933 | -4/Factory | Repaired Enh. Nova Cannon 30966 | -4/Factory | Entered Upper Caves 30966 | -4/Upper Caves | Accompanied by 1 ally 31093 | -4/Upper Caves | Spotted B-86 Titan 31106 | -4/Upper Caves | Allies destroyed B-86 Titan 31119 | -4/Upper Caves | Learned Research stockpile data 31175 | -4/Upper Caves | Learned 4 Research zone layouts 31239 | -4/Upper Caves | Build established: Scavenger-Mutant 31619 | -4/Upper Caves | Discovered new exit (range 11) 31638 | -4/Upper Caves | Entered another Upper Caves area 31638 | -4/Upper Caves | Accompanied by 5 allies 31638 | -4/Upper Caves | Discovered exit to Research (range 12) 31909 | -4/Upper Caves | Discovered new exit (range 7) 31951 | -4/Upper Caves | Entered Zhirov 31951 | -4/Zhirov | Accompanied by 5 allies 31952 | -4/Zhirov | Discovered new exit (range 4) 31981 | -4/Zhirov | Met Zhirov 32021 | -4/Zhirov | Zhirov requested help retrieving the SGEMP Prototype 32040 | -4/Zhirov | Found Alien Artifact 32040 | -4/Zhirov | Identified Integrated Reactor 32040 | -4/Zhirov | Installed Integrated Reactor, increased core energy generation (+10) 32064 | -4/Zhirov | Found Alien Artifact 32172 | -4/Zhirov | Entered Proximity Caves 32172 | -3/Proximity Caves | Accompanied by 5 allies 32190 | -3/Proximity Caves | Spotted B-86 Titan 32192 | -3/Proximity Caves | Allies destroyed B-86 Titan 32473 | -3/Proximity Caves | Build established: Mutant 32532 | -3/Proximity Caves | Attracted the attention of an 0b10 outpost 32746 | -3/Proximity Caves | Discovered exit to Research (range 12) 32785 | -3/Proximity Caves | Entered Research 32785 | -3/Research | Accompanied by 2 allies 32785 | -3/Research | Evolved 2 slots: Utility x2 32786 | -3/Research | Identified exit to Quarantine 32789 | -3/Research | Loaded intel: 110 machine locations 33089 | -3/Research | Build established: Hacker-Mutant 33195 | -3/Research | Repaired Broken Enh. Biometal Leg? 33263 | -3/Research | Repaired Exp. Coolant Injector 33362 | -3/Research | Found Adv. Micro-nuke Launcher 33540 | -3/Research | Identified exit to Research 33580 | -3/Research | Intercept squad dispatched 33604 | -3/Research | Spotted Tracker 33625 | -3/Research | Allies destroyed Tracker 33664 | -3/Research | Spotted Combat Programmer 33684 | -3/Research | Destroyed Combat Programmer 33923 | -3/Research | Spotted B-86 Titan 33982 | -3/Research | Intercept squad dispatched 34005 | -3/Research | Spotted Tracker 34014 | -3/Research | Allies destroyed Tracker 34036 | -3/Research | Spotted Combat Programmer 34052 | -3/Research | Destroyed Combat Programmer 34367 | -3/Research | Found Vibroblade 34422 | -3/Research | Found Unknown Launcher 34422 | -3/Research | Identified Fusion Bomb Launcher 34436 | -3/Research | Entered another Research area 34436 | -2/Research | Warlord forces began assault on 0b10 34436 | -2/Research | Evolved 2 slots: Power x1, Utility x1 34437 | -2/Research | Loaded intel: 100 machine locations 34466 | -2/Research | Repaired Lyr. Medium Armor Plating 34546 | -2/Research | Research machine network offline 34653 | -2/Research | Spotted B-90 Cyclops 34811 | -2/Research | Build established: Hacker-Skirmisher 34814 | -2/Research | Met up with Warlord 34870 | -2/Research | Discovered new exit (range 15) 34957 | -2/Research | Identified exit to Access 34970 | -2/Research | Borebot progress halted 34997 | -2/Research | Found Antimissile System 35016 | -2/Research | Entered Access 35016 | -1/Access | Evolved 2 slots: Utility x1, Weapon x1 35017 | -1/Access | Loaded intel: 102 machine locations 35077 | -1/Access | Garrison activated, responded to threat 35120 | -1/Access | Fabricated Combat Drone Bay (x1) 35158 | -1/Access | Energy Cycler disabled 35341 | -1/Access | Destroyed 14 combat bots 35429 | -1/Access | Fabricated Femtoactuators (x1) 35660 | -1/Access | Discovered new exit (range 24) 35725 | -1/Access | Repaired Enh. Biometal Leg? 35802 | -1/Access | Repaired Enh. Biometal Leg 35893 | -1/Access | Entered Command 35894 | -1/Command | Loaded intel: 57 machine locations 36141 | -1/Command | Disengaged cave seal 36141 | -1/Command | Derelicts emerged from the dark tunnel 36141 | -1/Command | Welcomed Warlord to Command 36166 | -1/Command | Build established: Hacker-Mutant 36180 | -1/Command | Warlord commented on Warlord statues 36185 | -1/Command | Spotted M Guard 36194 | -1/Command | Spotted Combat Programmer 36203 | -1/Command | Destroyed M Guard 36205 | -1/Command | Spotted M Guard 36214 | -1/Command | All MAIN.C guards destroyed 36230 | -1/Command | Found Prototype Launcher 36230 | -1/Command | Identified Hellfire Missile Launcher 36528 | -1/Command | Met MAIN.C 36528 | -1/Command | Hacked MAIN.C using A7's code 36539 | -1/Command | 0b10 Conduit disabled 36552 | -1/Command | MAIN.C activated Command garrisons 36594 | *** | Establishing Free Derelict Territories! Last Messages --------------- 36587_ Slug penetrates ZY-L1N. 36587_ MAIN.C reaction time slowed by virus. 36589_ Slug penetrates ZY-L1N. 36589_ Blast Slug penetrates MAIN.C. 36589_ Blast Slug penetrates 0b10 Conduit. 36589_ MAIN.C knocked back. 36589_ Blast Slug penetrates MAIN.C. 36591_ MAIN.C reaction time slowed by virus. 36593_ MAIN.C knocked back. 36593_ Blast Slug penetrates 0b10 Conduit. 36593_ Blast Slug penetrates MAIN.C. 36593_ MAIN.C: "I hope you know you're still going to DIE HERE WITH ME!" Heavy Barrier opened. 36593_ MAIN.C destroyed. 36594_ 0NRJD0LIUDXYYK9BSO7M:N%KD ZY-L1N: Victory! Sure there's still lots to do, but without MAIN.C at the helm 0b10 doesn't stand a chance. We've got this... [Achievement: Data Run] Map ----- +----------------------------------------------------+ | ?????????????????????????????????????????????????? | | ?????????????????????????????????????????????????? | | ?????????????????????????????????????????????????? | | ?????????????????????????????????????????????????? | | ?????????????????????????????????????????????????? | | ?????????????????????????????????????????????????? | | ???????????????????????????????????###???????????? | | ????????????????????????############;######??????? | | ?????????????????????""""""" """" #??????? | | ?????????????????????"" "" % #??????? | | ?????????????????????""""" "" ######## | | ?????????????????????""""""""""" ; | | ????????????????????#" " """ ; | | ????????????????????#"" """""" n + | | ????????????????????#"" """""" n ######## | | ????????????????????# " """""" % #??????? | | ????????????????????# " " n #??????? | | ????????????????????# " " ""#??????? | | ????????????????????#"""""""" % """#??????? | | ????????????????????#"" """""#??????? | | ????????????????????# Wn % """""#??????? | | ????????????????????# " #??????? | | ??????????? ######### " #??????? | | ????????T" """" " #??????? | | ????????"" """" #??????? | | ?????????? @ " #??????? | | ?????????????######## "" " #??????? | | ????????????????????# " " """"""""#??????? | | ????????????????????# "" " " " #??????? | | ????????????????????#######################??????? | | ?????????????????????????????????????????????????? | | ?????????????????????????????????????????????????? | | ?????????????????????????????????????????????????? | | ?????????????????????????????????????????????????? | | ?????????????????????????????????????????????????? | | ?????????????????????????????????????????????????? | | ?????????????????????????????????????????????????? | | ?????????????????????????????????????????????????? | | ?????????????????????????????????????????????????? | | ?????????????????????????????????????????????????? | | ?????????????????????????????????????????????????? | | ?????????????????????????????????????????????????? | | ?????????????????????????????????????????????????? | | ?????????????????????????????????????????????????? | | ???????????????????????T?????????????????????????? | | ????????????????????"""??????????????????????????? | | ????????????????????"""??????????????????????????? | | ?????????????????????????????????????????????????? | | ??????????""?????????????????????????????????????? | | ?????????""""????????????????????????????????????? | +----------------------------------------------------+ Best States ------------- Heat Dissipation 121 Coolant Potential 120 Energy Generation 85 Energy Capacity 790 Matter Stores 300 Matter Capacity 300 Sight Range 16 Terrain Scan Range 24 Terrain Scan Density 210 Jamming Range 16 Cloak Strength 4 Armor Coverage 675 Resistance: KI 20 Resistance: EM 75 Propulsion Shielding 66 Weapon Shielding 66 Point Defense Rating 240 Melee Speed Boost 50 Phase Shifting 20 Evasion (%) 75 Targeting Accuracy 8 Core Analysis 6 Recoil Reduction 3 Offensive Hacking 37 Defensive Hacking 20 Authchip Count 1 Trap Extractor Capacity 6 Item Schematics ----------------- Combat Drone Bay | -7/Data Miner | Free Lgt. Regenerative Plating | -7/Data Miner | Free Cld. Aerolev Unit | -7/Data Miner | Free Gravity Neutralizer | -7/Data Miner | Free Cld. Plasma Cannon | -7/Data Miner | Free Linear Gravjet | -7/Data Miner | Free Imp. Kinecellerator | -7/Data Miner | Free Imp. Remote Datajack | -7/Data Miner | Free Imp. Thermal Generator | -7/Data Miner | Free Adv. Thermal Generator | -7/Data Miner | Free Lyr. Heavy Armor Plating | -6/Factory | Hacked Hyp. Railgun | -5/Factory | Hacked Exp. EM Disruption Field | -5/Factory | Scanalyzed Enh. Biometal Leg | -5/Factory | Scanalyzed Assault Drone Bay | -4/Zhirov | Free Exp. Heat Sink | -4/Zhirov | Free Exp. Optical Array | -4/Zhirov | Free Imp. Arc Thrower | -4/Zhirov | Free Antimissile System | -3/Research | Hacked Robot Schematics ------------------ M-13 Machinist | -10/Materials | Hacked A-15 Conveyor | -7/Data Miner | Free R-10 Processor | -7/Data Miner | Free H-55 Commando | -7/Data Miner | Free G-47 Trooper | -7/Data Miner | Free Fabricated ------------ Combat Drone Bay | x1 | -6/Factory | Authchip Combat Drone Bay | x1 | -6/Factory Combat Drone Bay | x1 | -6/Factory Combat Drone Bay | x1 | -5/Factory Combat Drone Bay | x1 | -5/Factory Combat Drone Bay | x1 | -5/Factory Combat Drone Bay | x1 | -5/Factory Enh. Biometal Leg | x1 | -4/Factory Combat Drone Bay | x1 | -4/Factory Combat Drone Bay | x1 | -4/Factory Combat Drone Bay | x1 | -1/Access Femtoactuators | x1 | -1/Access | Preloaded Alien Tech Used ----------------- Integrated Reactor Achievements -------------- 404 Data Run Poison In The Code Unlimited Data Challenges ------------ None Game ------ Seed DefenseShadeClaymores Manual? 0 Play Time 05:49:40 Cumulative 200.4 hours Start 2024.02.10 @ 17:52:49 End 2024.02.11 @ 21:06:11 Sessions 11 Manual Loads 0 Difficulty Rogue Special Mode None Game No. 157 Rogue 157 Adventurer 0 Explorer 0 Win Type 7 Total 4 Types 3/0/0/0/0/0/0/1/0 Lore% 63 Gallery% 72 Achievement% 61 Wizard Run 0 Options --------- ASCII 0 Keyboard 1 Movement Numpad Keybinds 0 Fullscreen 2 Font 18/SmallcapsGlow Map View 76x50 Tactical HUD 1 Map Filters NONE Filters NONE Steam 1 RUN: 55c0ec01-e20a-4017-832d-a9a8484f5ada